Workbook

Sheet FabaoConfig
A1: ID | B1: ItemID | C1: name | D1: Type | E1: magicAttribute | F1: model | G1: fragmentID | I1: ShuxingIDs | J1: ShuxingPara | K1: SkillGroupID
A2: int | B2: int | C2: string | D2: int | E2: int | F2: string | G2: int | I2: int[] | J2: int[] | K2: int
P3: 输入等级 | Q3: 10
B4: 法宝对应道具ID | C4: 法宝名称 | D4: 法宝类型 1攻击型 2防御型 | E4: 法宝类型 1=金 2=木 4=水 8=火 16=土 | F4: 模型名称 | G4: 法宝对应碎片道具ID | H4: 法宝默认星级 | I4: 法宝基础属性类型 | J4: 法宝基础属性倍率 | K4: 法宝技能ID组 | L4: 生命 | M4: 防御 | N4: 攻击 | P4: 生命 | Q4: 防御 | R4: 攻击 | S4: 品质
A5: 10001 | B5: 10001 | C5: 神龙鼎 | D5: 1 | E5: 1 | F5: fb_3101 | G5: 11001 | H5: 1 | I5: =_xlfn.TEXTJOIN(";",1,IF(L5="","",1),IF(M5="","",2),IF(N5="","",3)) -> 2;3 | J5: =_xlfn.TEXTJOIN(";",1,L5:N5) -> 50;50 | K5: 3101 | M5: 50 | N5: 50 | P5: =IF(L5="","",ROUND(VLOOKUP($Q$3,FabaoPowerupConfig!$A:$E,3,FALSE)*L5/100,0)) ->  | Q5: =IF(M5="","",ROUND(VLOOKUP($Q$3,FabaoPowerupConfig!$A:$E,4,FALSE)*M5/100,0)) -> 11 | R5: =IF(N5="","",ROUND(VLOOKUP($Q$3,FabaoPowerupConfig!$A:$E,5,FALSE)*N5/100,0)) -> 11 | S5: 4
A6: 10002 | B6: 10002 | C6: 噬空齿刃 | D6: 1 | E6: 1 | F6: fb_wulonglun | G6: 11002 | H6: 1 | I6: =_xlfn.TEXTJOIN(";",1,IF(L6="","",1),IF(M6="","",2),IF(N6="","",3)) -> 1;3 | J6: =_xlfn.TEXTJOIN(";",1,L6:N6) -> 50;50 | K6: 3102 | L6: 50 | N6: 50 | P6: =IF(L6="","",ROUND(VLOOKUP($Q$3,FabaoPowerupConfig!$A:$E,3,FALSE)*L6/100,0)) -> 198 | Q6: =IF(M6="","",ROUND(VLOOKUP($Q$3,FabaoPowerupConfig!$A:$E,4,FALSE)*M6/100,0)) ->  | R6: =IF(N6="","",ROUND(VLOOKUP($Q$3,FabaoPowerupConfig!$A:$E,5,FALSE)*N6/100,0)) -> 11 | S6: 5
A7: 10003 | B7: 10003 | C7: 翡翠葫芦 | D7: 1 | E7: 2 | F7: fb_feicuihulu | G7: 11003 | H7: 1 | I7: 1;2 | J7: 75;25 | K7: 3201 | L7: 75 | M7: 25 | P7: =IF(L7="","",ROUND(VLOOKUP($Q$3,FabaoPowerupConfig!$A:$E,3,FALSE)*L7/100,0)) -> 298 | Q7: =IF(M7="","",ROUND(VLOOKUP($Q$3,FabaoPowerupConfig!$A:$E,4,FALSE)*M7/100,0)) -> 5 | R7: =IF(N7="","",ROUND(VLOOKUP($Q$3,FabaoPowerupConfig!$A:$E,5,FALSE)*N7/100,0)) ->  | S7: 4
A8: 10004 | B8: 10004 | C8: 混沌珠 | D8: 1 | E8: 2 | F8: fb_3202 | G8: 11004 | H8: 1 | I8: 1;3 | J8: 25;75 | K8: 3202 | L8: 25 | N8: 75 | P8: =IF(L8="","",ROUND(VLOOKUP($Q$3,FabaoPowerupConfig!$A:$E,3,FALSE)*L8/100,0)) -> 99 | Q8: =IF(M8="","",ROUND(VLOOKUP($Q$3,FabaoPowerupConfig!$A:$E,4,FALSE)*M8/100,0)) ->  | R8: =IF(N8="","",ROUND(VLOOKUP($Q$3,FabaoPowerupConfig!$A:$E,5,FALSE)*N8/100,0)) -> 16 | S8: 5
A9: 10005 | B9: 10005 | C9: 绝脉瓶 | D9: 1 | E9: 2 | F9: fb_3203 | G9: 11005 | H9: 1 | I9: 2;3 | J9: 50;50 | K9: 3203 | M9: 50 | N9: 50 | P9: =IF(L9="","",ROUND(VLOOKUP($Q$3,FabaoPowerupConfig!$A:$E,3,FALSE)*L9/100,0)) ->  | Q9: =IF(M9="","",ROUND(VLOOKUP($Q$3,FabaoPowerupConfig!$A:$E,4,FALSE)*M9/100,0)) -> 11 | R9: =IF(N9="","",ROUND(VLOOKUP($Q$3,FabaoPowerupConfig!$A:$E,5,FALSE)*N9/100,0)) -> 11 | S9: 5
A10: 10006 | B10: 10006 | C10: 九幽镇魂瓶 | D10: 1 | E10: 4 | F10: fb_BossPing | G10: 11006 | H10: 1 | I10: 1;3 | J10: 50;50 | K10: 3301 | L10: 50 | N10: 50 | P10: =IF(L10="","",ROUND(VLOOKUP($Q$3,FabaoPowerupConfig!$A:$E,3,FALSE)*L10/100,0)) -> 198 | Q10: =IF(M10="","",ROUND(VLOOKUP($Q$3,FabaoPowerupConfig!$A:$E,4,FALSE)*M10/100,0)) ->  | R10: =IF(N10="","",ROUND(VLOOKUP($Q$3,FabaoPowerupConfig!$A:$E,5,FALSE)*N10/100,0)) -> 11 | S10: 4
A11: 10007 | B11: 10007 | C11: 玉莲守心灯 | D11: 1 | E11: 4 | F11: fb_3302 | G11: 11007 | H11: 1 | I11: 1;2 | J11: 75;25 | K11: 3302 | L11: 75 | M11: 25 | P11: =IF(L11="","",ROUND(VLOOKUP($Q$3,FabaoPowerupConfig!$A:$E,3,FALSE)*L11/100,0)) -> 298 | Q11: =IF(M11="","",ROUND(VLOOKUP($Q$3,FabaoPowerupConfig!$A:$E,4,FALSE)*M11/100,0)) -> 5 | R11: =IF(N11="","",ROUND(VLOOKUP($Q$3,FabaoPowerupConfig!$A:$E,5,FALSE)*N11/100,0)) ->  | S11: 5
A12: 10008 | B12: 10008 | C12: 融灵塔 | D12: 1 | E12: 8 | F12: fb_3401 | G12: 11008 | H12: 1 | I12: 2;3 | J12: 75;25 | K12: 3401 | M12: 75 | N12: 25 | P12: =IF(L12="","",ROUND(VLOOKUP($Q$3,FabaoPowerupConfig!$A:$E,3,FALSE)*L12/100,0)) ->  | Q12: =IF(M12="","",ROUND(VLOOKUP($Q$3,FabaoPowerupConfig!$A:$E,4,FALSE)*M12/100,0)) -> 16 | R12: =IF(N12="","",ROUND(VLOOKUP($Q$3,FabaoPowerupConfig!$A:$E,5,FALSE)*N12/100,0)) -> 5 | S12: 4
B13: 10009 | C13: 禁元珠 | D13: 1 | E13: 8 | F13: fb_BossPing | G13: 11009 | H13: 1 | K13: 3402 | P13: =IF(L13="","",ROUND(VLOOKUP($Q$3,FabaoPowerupConfig!$A:$E,3,FALSE)*L13/100,0)) ->  | Q13: =IF(M13="","",ROUND(VLOOKUP($Q$3,FabaoPowerupConfig!$A:$E,4,FALSE)*M13/100,0)) ->  | R13: =IF(N13="","",ROUND(VLOOKUP($Q$3,FabaoPowerupConfig!$A:$E,5,FALSE)*N13/100,0)) ->  | S13: 5
A14: 10010 | B14: 10010 | C14: 玄龟盾 | D14: 1 | E14: 16 | F14: fb_xuanguidun | G14: 11010 | H14: 1 | I14: 1;2 | J14: 25;75 | K14: 3501 | L14: 25 | M14: 75 | P14: =IF(L14="","",ROUND(VLOOKUP($Q$3,FabaoPowerupConfig!$A:$E,3,FALSE)*L14/100,0)) -> 99 | Q14: =IF(M14="","",ROUND(VLOOKUP($Q$3,FabaoPowerupConfig!$A:$E,4,FALSE)*M14/100,0)) -> 16 | R14: =IF(N14="","",ROUND(VLOOKUP($Q$3,FabaoPowerupConfig!$A:$E,5,FALSE)*N14/100,0)) ->  | S14: 4
B15: 10011 | C15: 天殇血刃剑 | D15: 1 | E15: 16 | F15: fb_ding1 | G15: 11011 | H15: 1 | K15: 3502 | P15: =IF(L15="","",ROUND(VLOOKUP($Q$3,FabaoPowerupConfig!$A:$E,3,FALSE)*L15/100,0)) ->  | Q15: =IF(M15="","",ROUND(VLOOKUP($Q$3,FabaoPowerupConfig!$A:$E,4,FALSE)*M15/100,0)) ->  | R15: =IF(N15="","",ROUND(VLOOKUP($Q$3,FabaoPowerupConfig!$A:$E,5,FALSE)*N15/100,0)) ->  | S15: 5

Sheet FabaoPowerupConfig
A1: ID | B1: Power | C1: HP | D1: DEF | E1: ATK | G1: NeedLv | H1: PowerupItemIDs | I1: PowerupItemCosts | N1: PromotePieceNum | O1: SkillLevel
A2: int | B2: int | C2: float | D2: float | E2: float | G2: int | H2: int[] | I2: int[] | N2: int[] | O2: int
A4: ID序列 | B4: 法宝的基础强度成长 | C4: 法宝的生命标准成长1 | D4: 法宝的防御标准成长2 | E4: 法宝的攻击标准成长3 | F4: 实力等级 | G4: 升级所需修为等级 | H4: 强化所需道具ID | I4: 强化所需道具数量 | J4: 道具1 | K4: 数量1 | L4: 道具2 | M4: 数量2 | N4: 突破所需对应碎片数量 索引0=quality1 | O4: 对应的技能等级 | P4: 1.08 | Q4: 白色 | R4: 绿色 | S4: 蓝色 | T4: 紫色 | U4: 橙色
A5: 1 | B5: 100 | C5: =ROUND(VLOOKUP(F5,[1]主表!$A:$B,2,FALSE)*[1]主表!$D$1*[1]升级!$AC$4*(1+VLOOKUP(F5,[1]主表!$A:$F,6,FALSE)),2) -> 159.14 | D5: =ROUND(VLOOKUP(F5,[1]主表!$A:$B,2,FALSE)*[1]主表!$D$1*[1]升级!$Z$4,2) -> 15.2 | E5: =ROUND(VLOOKUP(F5,[1]主表!$A:$B,2,FALSE)*[1]主表!$D$1*[1]升级!$W$4,2) -> 15.2 | F5: 2 | G5: 3 | H5: =_xlfn.TEXTJOIN(";",1,J5,L5) -> 1001;1006 | I5: =_xlfn.TEXTJOIN(";",1,K5,M5) -> 20404;510 | J5: 1001 | K5: =ROUND(40*VLOOKUP(G5,[2]ResourceLevelConfig!$A:$H,3,FALSE)/20,0) -> 20404 | L5: 1006 | M5: =ROUND(100*VLOOKUP(G5,[2]ResourceLevelConfig!$A:$H,8,FALSE)/20,0) -> 510 | N5: =_xlfn.TEXTJOIN(";",1,Q5:U5) -> -1 | O5: 1 | Q5: -1
A6: 2 | B6: =ROUND(B5*P$4,0) -> 108 | C6: =ROUND(VLOOKUP(F6,[1]主表!$A:$B,2,FALSE)*[1]主表!$D$1*[1]升级!$AC$4*(1+VLOOKUP(F6,[1]主表!$A:$F,6,FALSE)),2) -> 178.09 | D6: =ROUND(VLOOKUP(F6,[1]主表!$A:$B,2,FALSE)*[1]主表!$D$1*[1]升级!$Z$4,2) -> 15.62 | E6: =ROUND(VLOOKUP(F6,[1]主表!$A:$B,2,FALSE)*[1]主表!$D$1*[1]升级!$W$4,2) -> 15.62 | F6: 4 | G6: 5 | H6: =_xlfn.TEXTJOIN(";",1,J6,L6) -> 1001;1006 | I6: =_xlfn.TEXTJOIN(";",1,K6,M6) -> 20818;520 | J6: 1001 | K6: =ROUND(40*VLOOKUP(G6,[2]ResourceLevelConfig!$A:$H,3,FALSE)/20,0) -> 20818 | L6: 1006 | M6: =ROUND(100*VLOOKUP(G6,[2]ResourceLevelConfig!$A:$H,8,FALSE)/20,0) -> 520 | N6: -1 | O6: 1 | Q6: -1
A7: 3 | B7: =ROUND(B6*P$4,0) -> 117 | C7: =ROUND(VLOOKUP(F7,[1]主表!$A:$B,2,FALSE)*[1]主表!$D$1*[1]升级!$AC$4*(1+VLOOKUP(F7,[1]主表!$A:$F,6,FALSE)),2) -> 197.96 | D7: =ROUND(VLOOKUP(F7,[1]主表!$A:$B,2,FALSE)*[1]主表!$D$1*[1]升级!$Z$4,2) -> 16.04 | E7: =ROUND(VLOOKUP(F7,[1]主表!$A:$B,2,FALSE)*[1]主表!$D$1*[1]升级!$W$4,2) -> 16.04 | F7: 6 | G7: 7 | H7: 1001;1006 | I7: 21240;530 | J7: 1001 | K7: =ROUND(40*VLOOKUP(G7,[2]ResourceLevelConfig!$A:$H,3,FALSE)/20,0) -> 21240 | L7: 1006 | M7: =ROUND(100*VLOOKUP(G7,[2]ResourceLevelConfig!$A:$H,8,FALSE)/20,0) -> 530 | N7: -1 | O7: 1 | Q7: -1 | X7: 1 | Y7: 1
A8: 4 | B8: 126 | C8: =ROUND(VLOOKUP(F8,[1]主表!$A:$B,2,FALSE)*[1]主表!$D$1*[1]升级!$AC$4*(1+VLOOKUP(F8,[1]主表!$A:$F,6,FALSE)),2) -> 218.77 | D8: =ROUND(VLOOKUP(F8,[1]主表!$A:$B,2,FALSE)*[1]主表!$D$1*[1]升级!$Z$4,2) -> 16.48 | E8: =ROUND(VLOOKUP(F8,[1]主表!$A:$B,2,FALSE)*[1]主表!$D$1*[1]升级!$W$4,2) -> 16.48 | F8: 8 | G8: 9 | H8: 1001;1006 | I8: 21670;540 | J8: 1001 | K8: =ROUND(40*VLOOKUP(G8,[2]ResourceLevelConfig!$A:$H,3,FALSE)/20,0) -> 21670 | L8: 1006 | M8: =ROUND(100*VLOOKUP(G8,[2]ResourceLevelConfig!$A:$H,8,FALSE)/20,0) -> 540 | N8: -1 | O8: 1 | Q8: -1 | X8: 2 | Y8: 6
A9: 5 | B9: 136 | C9: =ROUND(VLOOKUP(F9,[1]主表!$A:$B,2,FALSE)*[1]主表!$D$1*[1]升级!$AC$4*(1+VLOOKUP(F9,[1]主表!$A:$F,6,FALSE)),2) -> 240.56 | D9: =ROUND(VLOOKUP(F9,[1]主表!$A:$B,2,FALSE)*[1]主表!$D$1*[1]升级!$Z$4,2) -> 16.92 | E9: =ROUND(VLOOKUP(F9,[1]主表!$A:$B,2,FALSE)*[1]主表!$D$1*[1]升级!$W$4,2) -> 16.92 | F9: 10 | G9: 11 | H9: 1001;1006 | I9: 22108;555 | J9: 1001 | K9: =ROUND(40*VLOOKUP(G9,[2]ResourceLevelConfig!$A:$H,3,FALSE)/20,0) -> 22108 | L9: 1006 | M9: =ROUND(100*VLOOKUP(G9,[2]ResourceLevelConfig!$A:$H,8,FALSE)/20,0) -> 555 | N9: -1 | O9: 1 | Q9: -1 | X9: 3 | Y9: 10
A10: 6 | B10: 147 | C10: =ROUND(VLOOKUP(F10,[1]主表!$A:$B,2,FALSE)*[1]主表!$D$1*[1]升级!$AC$4*(1+VLOOKUP(F10,[1]主表!$A:$F,6,FALSE)),2) -> 285.86 | D10: =ROUND(VLOOKUP(F10,[1]主表!$A:$B,2,FALSE)*[1]主表!$D$1*[1]升级!$Z$4,2) -> 18.87 | E10: =ROUND(VLOOKUP(F10,[1]主表!$A:$B,2,FALSE)*[1]主表!$D$1*[1]升级!$W$4,2) -> 18.87 | F10: 12 | G10: 13 | H10: 1001;1006 | I10: 22556;565 | J10: 1001 | K10: =ROUND(40*VLOOKUP(G10,[2]ResourceLevelConfig!$A:$H,3,FALSE)/20,0) -> 22556 | L10: 1006 | M10: =ROUND(100*VLOOKUP(G10,[2]ResourceLevelConfig!$A:$H,8,FALSE)/20,0) -> 565 | N10: -1 | O10: 1 | Q10: -1 | X10: 4 | Y10: 15
A11: 7 | B11: 159 | C11: =ROUND(VLOOKUP(F11,[1]主表!$A:$B,2,FALSE)*[1]主表!$D$1*[1]升级!$AC$4*(1+VLOOKUP(F11,[1]主表!$A:$F,6,FALSE)),2) -> 311.78 | D11: =ROUND(VLOOKUP(F11,[1]主表!$A:$B,2,FALSE)*[1]主表!$D$1*[1]升级!$Z$4,2) -> 19.38 | E11: =ROUND(VLOOKUP(F11,[1]主表!$A:$B,2,FALSE)*[1]主表!$D$1*[1]升级!$W$4,2) -> 19.38 | F11: 14 | G11: 15 | H11: 1001;1006 | I11: 23012;575 | J11: 1001 | K11: =ROUND(40*VLOOKUP(G11,[2]ResourceLevelConfig!$A:$H,3,FALSE)/20,0) -> 23012 | L11: 1006 | M11: =ROUND(100*VLOOKUP(G11,[2]ResourceLevelConfig!$A:$H,8,FALSE)/20,0) -> 575 | N11: -1 | O11: 1 | Q11: -1 | X11: 5 | Y11: 20
A12: 8 | B12: 172 | C12: =ROUND(VLOOKUP(F12,[1]主表!$A:$B,2,FALSE)*[1]主表!$D$1*[1]升级!$AC$4*(1+VLOOKUP(F12,[1]主表!$A:$F,6,FALSE)),2) -> 338.9 | D12: =ROUND(VLOOKUP(F12,[1]主表!$A:$B,2,FALSE)*[1]主表!$D$1*[1]升级!$Z$4,2) -> 19.91 | E12: =ROUND(VLOOKUP(F12,[1]主表!$A:$B,2,FALSE)*[1]主表!$D$1*[1]升级!$W$4,2) -> 19.91 | F12: 16 | G12: 17 | H12: 1001;1006 | I12: 23478;585 | J12: 1001 | K12: =ROUND(40*VLOOKUP(G12,[2]ResourceLevelConfig!$A:$H,3,FALSE)/20,0) -> 23478 | L12: 1006 | M12: =ROUND(100*VLOOKUP(G12,[2]ResourceLevelConfig!$A:$H,8,FALSE)/20,0) -> 585 | N12: -1 | O12: 1 | Q12: -1 | X12: 6 | Y12: 25
A13: 9 | B13: 186 | C13: =ROUND(VLOOKUP(F13,[1]主表!$A:$B,2,FALSE)*[1]主表!$D$1*[1]升级!$AC$4*(1+VLOOKUP(F13,[1]主表!$A:$F,6,FALSE)),2) -> 367.27 | D13: =ROUND(VLOOKUP(F13,[1]主表!$A:$B,2,FALSE)*[1]主表!$D$1*[1]升级!$Z$4,2) -> 20.45 | E13: =ROUND(VLOOKUP(F13,[1]主表!$A:$B,2,FALSE)*[1]主表!$D$1*[1]升级!$W$4,2) -> 20.45 | F13: 18 | G13: 19 | H13: 1001;1006 | I13: 23952;600 | J13: 1001 | K13: =ROUND(40*VLOOKUP(G13,[2]ResourceLevelConfig!$A:$H,3,FALSE)/20,0) -> 23952 | L13: 1006 | M13: =ROUND(100*VLOOKUP(G13,[2]ResourceLevelConfig!$A:$H,8,FALSE)/20,0) -> 600 | N13: -1 | O13: 1 | Q13: -1
A14: 10 | B14: 201 | C14: =ROUND(VLOOKUP(F14,[1]主表!$A:$B,2,FALSE)*[1]主表!$D$1*[1]升级!$AC$4*(1+VLOOKUP(F14,[1]主表!$A:$F,6,FALSE)),2) -> 396.92 | D14: =ROUND(VLOOKUP(F14,[1]主表!$A:$B,2,FALSE)*[1]主表!$D$1*[1]升级!$Z$4,2) -> 21.01 | E14: =ROUND(VLOOKUP(F14,[1]主表!$A:$B,2,FALSE)*[1]主表!$D$1*[1]升级!$W$4,2) -> 21.01 | F14: 20 | G14: 21 | H14: 1001;1006 | I14: 24438;610 | J14: 1001 | K14: =ROUND(40*VLOOKUP(G14,[2]ResourceLevelConfig!$A:$H,3,FALSE)/20,0) -> 24438 | L14: 1006 | M14: =ROUND(100*VLOOKUP(G14,[2]ResourceLevelConfig!$A:$H,8,FALSE)/20,0) -> 610 | N14: -1 | O14: 1 | Q14: -1
A15: 11 | B15: 217 | C15: =ROUND(VLOOKUP(F15,[1]主表!$A:$B,2,FALSE)*[1]主表!$D$1*[1]升级!$AC$4*(1+VLOOKUP(F15,[1]主表!$A:$F,6,FALSE)),2) -> 464.44 | D15: =ROUND(VLOOKUP(F15,[1]主表!$A:$B,2,FALSE)*[1]主表!$D$1*[1]升级!$Z$4,2) -> 23.42 | E15: =ROUND(VLOOKUP(F15,[1]主表!$A:$B,2,FALSE)*[1]主表!$D$1*[1]升级!$W$4,2) -> 23.42 | F15: 22 | G15: 23 | H15: 1001;1006 | I15: 24932;625 | J15: 1001 | K15: =ROUND(40*VLOOKUP(G15,[2]ResourceLevelConfig!$A:$H,3,FALSE)/20,0) -> 24932 | L15: 1006 | M15: =ROUND(100*VLOOKUP(G15,[2]ResourceLevelConfig!$A:$H,8,FALSE)/20,0) -> 625 | N15: -1 | O15: 1 | Q15: -1
A16: 12 | B16: 234 | C16: =ROUND(VLOOKUP(F16,[1]主表!$A:$B,2,FALSE)*[1]主表!$D$1*[1]升级!$AC$4*(1+VLOOKUP(F16,[1]主表!$A:$F,6,FALSE)),2) -> 499.59 | D16: =ROUND(VLOOKUP(F16,[1]主表!$A:$B,2,FALSE)*[1]主表!$D$1*[1]升级!$Z$4,2) -> 24.05 | E16: =ROUND(VLOOKUP(F16,[1]主表!$A:$B,2,FALSE)*[1]主表!$D$1*[1]升级!$W$4,2) -> 24.05 | F16: 24 | G16: 25 | H16: 1001;1006 | I16: 25436;635 | J16: 1001 | K16: =ROUND(40*VLOOKUP(G16,[2]ResourceLevelConfig!$A:$H,3,FALSE)/20,0) -> 25436 | L16: 1006 | M16: =ROUND(100*VLOOKUP(G16,[2]ResourceLevelConfig!$A:$H,8,FALSE)/20,0) -> 635 | N16: -1 | O16: 1 | Q16: -1
A17: 13 | B17: 253 | C17: =ROUND(VLOOKUP(F17,[1]主表!$A:$B,2,FALSE)*[1]主表!$D$1*[1]升级!$AC$4*(1+VLOOKUP(F17,[1]主表!$A:$F,6,FALSE)),2) -> 536.31 | D17: =ROUND(VLOOKUP(F17,[1]主表!$A:$B,2,FALSE)*[1]主表!$D$1*[1]升级!$Z$4,2) -> 24.71 | E17: =ROUND(VLOOKUP(F17,[1]主表!$A:$B,2,FALSE)*[1]主表!$D$1*[1]升级!$W$4,2) -> 24.71 | F17: 26 | G17: 27 | H17: 1001;1006 | I17: 25952;650 | J17: 1001 | K17: =ROUND(40*VLOOKUP(G17,[2]ResourceLevelConfig!$A:$H,3,FALSE)/20,0) -> 25952 | L17: 1006 | M17: =ROUND(100*VLOOKUP(G17,[2]ResourceLevelConfig!$A:$H,8,FALSE)/20,0) -> 650 | N17: -1 | O17: 1 | Q17: -1
A18: 14 | B18: 273 | C18: =ROUND(VLOOKUP(F18,[1]主表!$A:$B,2,FALSE)*[1]主表!$D$1*[1]升级!$AC$4*(1+VLOOKUP(F18,[1]主表!$A:$F,6,FALSE)),2) -> 574.66 | D18: =ROUND(VLOOKUP(F18,[1]主表!$A:$B,2,FALSE)*[1]主表!$D$1*[1]升级!$Z$4,2) -> 25.38 | E18: =ROUND(VLOOKUP(F18,[1]主表!$A:$B,2,FALSE)*[1]主表!$D$1*[1]升级!$W$4,2) -> 25.38 | F18: 28 | G18: 29 | H18: 1001;1006 | I18: 26476;660 | J18: 1001 | K18: =ROUND(40*VLOOKUP(G18,[2]ResourceLevelConfig!$A:$H,3,FALSE)/20,0) -> 26476 | L18: 1006 | M18: =ROUND(100*VLOOKUP(G18,[2]ResourceLevelConfig!$A:$H,8,FALSE)/20,0) -> 660 | N18: -1 | O18: 1 | Q18: -1
A19: 15 | B19: 295 | C19: =ROUND(VLOOKUP(F19,[1]主表!$A:$B,2,FALSE)*[1]主表!$D$1*[1]升级!$AC$4*(1+VLOOKUP(F19,[1]主表!$A:$F,6,FALSE)),2) -> 614.69 | D19: =ROUND(VLOOKUP(F19,[1]主表!$A:$B,2,FALSE)*[1]主表!$D$1*[1]升级!$Z$4,2) -> 26.07 | E19: =ROUND(VLOOKUP(F19,[1]主表!$A:$B,2,FALSE)*[1]主表!$D$1*[1]升级!$W$4,2) -> 26.07 | F19: 30 | G19: 31 | H19: 1001;1006 | I19: 27012;675 | J19: 1001 | K19: =ROUND(40*VLOOKUP(G19,[2]ResourceLevelConfig!$A:$H,3,FALSE)/20,0) -> 27012 | L19: 1006 | M19: =ROUND(100*VLOOKUP(G19,[2]ResourceLevelConfig!$A:$H,8,FALSE)/20,0) -> 675 | N19: -1 | O19: 1 | Q19: -1
A20: 16 | B20: 319 | C20: =ROUND(VLOOKUP(F20,[1]主表!$A:$B,2,FALSE)*[1]主表!$D$1*[1]升级!$AC$4*(1+VLOOKUP(F20,[1]主表!$A:$F,6,FALSE)),2) -> 842.05 | D20: =ROUND(VLOOKUP(F20,[1]主表!$A:$B,2,FALSE)*[1]主表!$D$1*[1]升级!$Z$4,2) -> 34.35 | E20: =ROUND(VLOOKUP(F20,[1]主表!$A:$B,2,FALSE)*[1]主表!$D$1*[1]升级!$W$4,2) -> 34.35 | F20: 32 | G20: 33 | H20: 1001;1006 | I20: 27560;690 | J20: 1001 | K20: =ROUND(40*VLOOKUP(G20,[2]ResourceLevelConfig!$A:$H,3,FALSE)/20,0) -> 27560 | L20: 1006 | M20: =ROUND(100*VLOOKUP(G20,[2]ResourceLevelConfig!$A:$H,8,FALSE)/20,0) -> 690 | N20: -1 | O20: 1 | Q20: -1
A21: 17 | B21: 345 | C21: =ROUND(VLOOKUP(F21,[1]主表!$A:$B,2,FALSE)*[1]主表!$D$1*[1]升级!$AC$4*(1+VLOOKUP(F21,[1]主表!$A:$F,6,FALSE)),2) -> 897.99 | D21: =ROUND(VLOOKUP(F21,[1]主表!$A:$B,2,FALSE)*[1]主表!$D$1*[1]升级!$Z$4,2) -> 35.28 | E21: =ROUND(VLOOKUP(F21,[1]主表!$A:$B,2,FALSE)*[1]主表!$D$1*[1]升级!$W$4,2) -> 35.28 | F21: 34 | G21: 35 | H21: 1001;1006 | I21: 28118;705 | J21: 1001 | K21: =ROUND(40*VLOOKUP(G21,[2]ResourceLevelConfig!$A:$H,3,FALSE)/20,0) -> 28118 | L21: 1006 | M21: =ROUND(100*VLOOKUP(G21,[2]ResourceLevelConfig!$A:$H,8,FALSE)/20,0) -> 705 | N21: -1 | O21: 1 | Q21: -1
A22: 18 | B22: 373 | C22: =ROUND(VLOOKUP(F22,[1]主表!$A:$B,2,FALSE)*[1]主表!$D$1*[1]升级!$AC$4*(1+VLOOKUP(F22,[1]主表!$A:$F,6,FALSE)),2) -> 956.34 | D22: =ROUND(VLOOKUP(F22,[1]主表!$A:$B,2,FALSE)*[1]主表!$D$1*[1]升级!$Z$4,2) -> 36.24 | E22: =ROUND(VLOOKUP(F22,[1]主表!$A:$B,2,FALSE)*[1]主表!$D$1*[1]升级!$W$4,2) -> 36.24 | F22: 36 | G22: 37 | H22: 1001;1006 | I22: 28686;715 | J22: 1001 | K22: =ROUND(40*VLOOKUP(G22,[2]ResourceLevelConfig!$A:$H,3,FALSE)/20,0) -> 28686 | L22: 1006 | M22: =ROUND(100*VLOOKUP(G22,[2]ResourceLevelConfig!$A:$H,8,FALSE)/20,0) -> 715 | N22: -1 | O22: 1 | Q22: -1
A23: 19 | B23: 403 | C23: =ROUND(VLOOKUP(F23,[1]主表!$A:$B,2,FALSE)*[1]主表!$D$1*[1]升级!$AC$4*(1+VLOOKUP(F23,[1]主表!$A:$F,6,FALSE)),2) -> 1017.2 | D23: =ROUND(VLOOKUP(F23,[1]主表!$A:$B,2,FALSE)*[1]主表!$D$1*[1]升级!$Z$4,2) -> 37.23 | E23: =ROUND(VLOOKUP(F23,[1]主表!$A:$B,2,FALSE)*[1]主表!$D$1*[1]升级!$W$4,2) -> 37.23 | F23: 38 | G23: 39 | H23: 1001;1006 | I23: 29268;730 | J23: 1001 | K23: =ROUND(40*VLOOKUP(G23,[2]ResourceLevelConfig!$A:$H,3,FALSE)/20,0) -> 29268 | L23: 1006 | M23: =ROUND(100*VLOOKUP(G23,[2]ResourceLevelConfig!$A:$H,8,FALSE)/20,0) -> 730 | N23: -1 | O23: 1 | Q23: -1
A24: 20 | B24: 435 | C24: =ROUND(VLOOKUP(F24,[1]主表!$A:$B,2,FALSE)*[1]主表!$D$1*[1]升级!$AC$4*(1+VLOOKUP(F24,[1]主表!$A:$F,6,FALSE)),2) -> 1080.66 | D24: =ROUND(VLOOKUP(F24,[1]主表!$A:$B,2,FALSE)*[1]主表!$D$1*[1]升级!$Z$4,2) -> 38.24 | E24: =ROUND(VLOOKUP(F24,[1]主表!$A:$B,2,FALSE)*[1]主表!$D$1*[1]升级!$W$4,2) -> 38.24 | F24: 40 | G24: 41 | H24: 1001;1006 | I24: 29860;745 | J24: 1001 | K24: =ROUND(40*VLOOKUP(G24,[2]ResourceLevelConfig!$A:$H,3,FALSE)/20,0) -> 29860 | L24: 1006 | M24: =ROUND(100*VLOOKUP(G24,[2]ResourceLevelConfig!$A:$H,8,FALSE)/20,0) -> 745 | N24: -1 | O24: 1 | Q24: -1
A25: 21 | B25: 470 | C25: =ROUND(VLOOKUP(F25,[1]主表!$A:$B,2,FALSE)*[1]主表!$D$1*[1]升级!$AC$4*(1+VLOOKUP(F25,[1]主表!$A:$F,6,FALSE)),2) -> 1244.7 | D25: =ROUND(VLOOKUP(F25,[1]主表!$A:$B,2,FALSE)*[1]主表!$D$1*[1]升级!$Z$4,2) -> 42.63 | E25: =ROUND(VLOOKUP(F25,[1]主表!$A:$B,2,FALSE)*[1]主表!$D$1*[1]升级!$W$4,2) -> 42.63 | F25: 42 | G25: 43 | H25: 1001;1006 | I25: 30464;760 | J25: 1001 | K25: =ROUND(40*VLOOKUP(G25,[2]ResourceLevelConfig!$A:$H,3,FALSE)/20,0) -> 30464 | L25: 1006 | M25: =ROUND(100*VLOOKUP(G25,[2]ResourceLevelConfig!$A:$H,8,FALSE)/20,0) -> 760 | N25: -1 | O25: 1 | Q25: -1
A26: 22 | B26: 508 | C26: =ROUND(VLOOKUP(F26,[1]主表!$A:$B,2,FALSE)*[1]主表!$D$1*[1]升级!$AC$4*(1+VLOOKUP(F26,[1]主表!$A:$F,6,FALSE)),2) -> 1319.54 | D26: =ROUND(VLOOKUP(F26,[1]主表!$A:$B,2,FALSE)*[1]主表!$D$1*[1]升级!$Z$4,2) -> 43.79 | E26: =ROUND(VLOOKUP(F26,[1]主表!$A:$B,2,FALSE)*[1]主表!$D$1*[1]升级!$W$4,2) -> 43.79 | F26: 44 | G26: 45 | H26: 1001;1006 | I26: 31080;775 | J26: 1001 | K26: =ROUND(40*VLOOKUP(G26,[2]ResourceLevelConfig!$A:$H,3,FALSE)/20,0) -> 31080 | L26: 1006 | M26: =ROUND(100*VLOOKUP(G26,[2]ResourceLevelConfig!$A:$H,8,FALSE)/20,0) -> 775 | N26: -1 | O26: 1 | Q26: -1
A27: 23 | B27: 549 | C27: =ROUND(VLOOKUP(F27,[1]主表!$A:$B,2,FALSE)*[1]主表!$D$1*[1]升级!$AC$4*(1+VLOOKUP(F27,[1]主表!$A:$F,6,FALSE)),2) -> 1397.54 | D27: =ROUND(VLOOKUP(F27,[1]主表!$A:$B,2,FALSE)*[1]主表!$D$1*[1]升级!$Z$4,2) -> 44.98 | E27: =ROUND(VLOOKUP(F27,[1]主表!$A:$B,2,FALSE)*[1]主表!$D$1*[1]升级!$W$4,2) -> 44.98 | F27: 46 | G27: 47 | H27: 1001;1006 | I27: 31710;795 | J27: 1001 | K27: =ROUND(40*VLOOKUP(G27,[2]ResourceLevelConfig!$A:$H,3,FALSE)/20,0) -> 31710 | L27: 1006 | M27: =ROUND(100*VLOOKUP(G27,[2]ResourceLevelConfig!$A:$H,8,FALSE)/20,0) -> 795 | N27: -1 | O27: 1 | Q27: -1
A28: 24 | B28: 593 | C28: =ROUND(VLOOKUP(F28,[1]主表!$A:$B,2,FALSE)*[1]主表!$D$1*[1]升级!$AC$4*(1+VLOOKUP(F28,[1]主表!$A:$F,6,FALSE)),2) -> 1478.8 | D28: =ROUND(VLOOKUP(F28,[1]主表!$A:$B,2,FALSE)*[1]主表!$D$1*[1]升级!$Z$4,2) -> 46.2 | E28: =ROUND(VLOOKUP(F28,[1]主表!$A:$B,2,FALSE)*[1]主表!$D$1*[1]升级!$W$4,2) -> 46.2 | F28: 48 | G28: 49 | H28: 1001;1006 | I28: 32352;810 | J28: 1001 | K28: =ROUND(40*VLOOKUP(G28,[2]ResourceLevelConfig!$A:$H,3,FALSE)/20,0) -> 32352 | L28: 1006 | M28: =ROUND(100*VLOOKUP(G28,[2]ResourceLevelConfig!$A:$H,8,FALSE)/20,0) -> 810 | N28: -1 | O28: 1 | Q28: -1
A29: 25 | B29: 640 | C29: =ROUND(VLOOKUP(F29,[1]主表!$A:$B,2,FALSE)*[1]主表!$D$1*[1]升级!$AC$4*(1+VLOOKUP(F29,[1]主表!$A:$F,6,FALSE)),2) -> 1563.44 | D29: =ROUND(VLOOKUP(F29,[1]主表!$A:$B,2,FALSE)*[1]主表!$D$1*[1]升级!$Z$4,2) -> 47.46 | E29: =ROUND(VLOOKUP(F29,[1]主表!$A:$B,2,FALSE)*[1]主表!$D$1*[1]升级!$W$4,2) -> 47.46 | F29: 50 | G29: 51 | H29: 1001;1006 | I29: 33006;825 | J29: 1001 | K29: =ROUND(40*VLOOKUP(G29,[2]ResourceLevelConfig!$A:$H,3,FALSE)/20,0) -> 33006 | L29: 1006 | M29: =ROUND(100*VLOOKUP(G29,[2]ResourceLevelConfig!$A:$H,8,FALSE)/20,0) -> 825 | N29: -1 | O29: 1 | Q29: -1
A30: 26 | B30: 691 | C30: =ROUND(VLOOKUP(F30,[1]主表!$A:$B,2,FALSE)*[1]主表!$D$1*[1]升级!$AC$4*(1+VLOOKUP(F30,[1]主表!$A:$F,6,FALSE)),2) -> 1792.55 | D30: =ROUND(VLOOKUP(F30,[1]主表!$A:$B,2,FALSE)*[1]主表!$D$1*[1]升级!$Z$4,2) -> 52.91 | E30: =ROUND(VLOOKUP(F30,[1]主表!$A:$B,2,FALSE)*[1]主表!$D$1*[1]升级!$W$4,2) -> 52.91 | F30: 52 | G30: 53 | H30: 1001;1006 | I30: 33674;840 | J30: 1001 | K30: =ROUND(40*VLOOKUP(G30,[2]ResourceLevelConfig!$A:$H,3,FALSE)/20,0) -> 33674 | L30: 1006 | M30: =ROUND(100*VLOOKUP(G30,[2]ResourceLevelConfig!$A:$H,8,FALSE)/20,0) -> 840 | N30: -1 | O30: 1 | Q30: -1
A31: 27 | B31: 746 | C31: =ROUND(VLOOKUP(F31,[1]主表!$A:$B,2,FALSE)*[1]主表!$D$1*[1]升级!$AC$4*(1+VLOOKUP(F31,[1]主表!$A:$F,6,FALSE)),2) -> 1892.18 | D31: =ROUND(VLOOKUP(F31,[1]主表!$A:$B,2,FALSE)*[1]主表!$D$1*[1]升级!$Z$4,2) -> 54.35 | E31: =ROUND(VLOOKUP(F31,[1]主表!$A:$B,2,FALSE)*[1]主表!$D$1*[1]升级!$W$4,2) -> 54.35 | F31: 54 | G31: 55 | H31: 1001;1006 | I31: 34356;860 | J31: 1001 | K31: =ROUND(40*VLOOKUP(G31,[2]ResourceLevelConfig!$A:$H,3,FALSE)/20,0) -> 34356 | L31: 1006 | M31: =ROUND(100*VLOOKUP(G31,[2]ResourceLevelConfig!$A:$H,8,FALSE)/20,0) -> 860 | N31: -1 | O31: 1 | Q31: -1
A32: 28 | B32: 806 | C32: =ROUND(VLOOKUP(F32,[1]主表!$A:$B,2,FALSE)*[1]主表!$D$1*[1]升级!$AC$4*(1+VLOOKUP(F32,[1]主表!$A:$F,6,FALSE)),2) -> 1995.9 | D32: =ROUND(VLOOKUP(F32,[1]主表!$A:$B,2,FALSE)*[1]主表!$D$1*[1]升级!$Z$4,2) -> 55.83 | E32: =ROUND(VLOOKUP(F32,[1]主表!$A:$B,2,FALSE)*[1]主表!$D$1*[1]升级!$W$4,2) -> 55.83 | F32: 56 | G32: 57 | H32: 1001;1006 | I32: 35052;875 | J32: 1001 | K32: =ROUND(40*VLOOKUP(G32,[2]ResourceLevelConfig!$A:$H,3,FALSE)/20,0) -> 35052 | L32: 1006 | M32: =ROUND(100*VLOOKUP(G32,[2]ResourceLevelConfig!$A:$H,8,FALSE)/20,0) -> 875 | N32: -1 | O32: 1 | Q32: -1
A33: 29 | B33: 870 | C33: =ROUND(VLOOKUP(F33,[1]主表!$A:$B,2,FALSE)*[1]主表!$D$1*[1]升级!$AC$4*(1+VLOOKUP(F33,[1]主表!$A:$F,6,FALSE)),2) -> 2103.86 | D33: =ROUND(VLOOKUP(F33,[1]主表!$A:$B,2,FALSE)*[1]主表!$D$1*[1]升级!$Z$4,2) -> 57.34 | E33: =ROUND(VLOOKUP(F33,[1]主表!$A:$B,2,FALSE)*[1]主表!$D$1*[1]升级!$W$4,2) -> 57.34 | F33: 58 | G33: 59 | H33: 1001;1006 | I33: 35760;895 | J33: 1001 | K33: =ROUND(40*VLOOKUP(G33,[2]ResourceLevelConfig!$A:$H,3,FALSE)/20,0) -> 35760 | L33: 1006 | M33: =ROUND(100*VLOOKUP(G33,[2]ResourceLevelConfig!$A:$H,8,FALSE)/20,0) -> 895 | N33: -1 | O33: 1 | Q33: -1
A34: 30 | B34: 940 | C34: =ROUND(VLOOKUP(F34,[1]主表!$A:$B,2,FALSE)*[1]主表!$D$1*[1]升级!$AC$4*(1+VLOOKUP(F34,[1]主表!$A:$F,6,FALSE)),2) -> 2216.21 | D34: =ROUND(VLOOKUP(F34,[1]主表!$A:$B,2,FALSE)*[1]主表!$D$1*[1]升级!$Z$4,2) -> 58.9 | E34: =ROUND(VLOOKUP(F34,[1]主表!$A:$B,2,FALSE)*[1]主表!$D$1*[1]升级!$W$4,2) -> 58.9 | F34: 60 | G34: 61 | H34: 1001;1006 | I34: 36484;910 | J34: 1001 | K34: =ROUND(40*VLOOKUP(G34,[2]ResourceLevelConfig!$A:$H,3,FALSE)/20,0) -> 36484 | L34: 1006 | M34: =ROUND(100*VLOOKUP(G34,[2]ResourceLevelConfig!$A:$H,8,FALSE)/20,0) -> 910 | N34: =_xlfn.TEXTJOIN(";",1,Q34:U34) -> -1;0;30;30;30 | O34: 2 | Q34: -1 | R34: 0 | S34: =[1]抽卡!$S$10 -> 30 | T34: =[1]抽卡!$S$11 -> 30 | U34: =[1]抽卡!$S$12 -> 30
A35: 31 | B35: 1015 | C35: =ROUND(VLOOKUP(F35,[1]主表!$A:$B,2,FALSE)*[1]主表!$D$1*[1]升级!$AC$4*(1+VLOOKUP(F35,[1]主表!$A:$F,6,FALSE)),2) -> 2992.65 | D35: =ROUND(VLOOKUP(F35,[1]主表!$A:$B,2,FALSE)*[1]主表!$D$1*[1]升级!$Z$4,2) -> 77.61 | E35: =ROUND(VLOOKUP(F35,[1]主表!$A:$B,2,FALSE)*[1]主表!$D$1*[1]升级!$W$4,2) -> 77.61 | F35: 62 | G35: 63 | H35: =_xlfn.TEXTJOIN(";",1,J35,L35) -> 1001;1006 | I35: =_xlfn.TEXTJOIN(";",1,K35,M35) -> 37222;930 | J35: 1001 | K35: =ROUND(40*VLOOKUP(G35,[2]ResourceLevelConfig!$A:$H,3,FALSE)/20,0) -> 37222 | L35: 1006 | M35: =ROUND(100*VLOOKUP(G35,[2]ResourceLevelConfig!$A:$H,8,FALSE)/20,0) -> 930 | N35: -1 | O35: 2 | Q35: -1
A36: 32 | B36: =ROUND(B35*P$4,0) -> 1096 | C36: =ROUND(VLOOKUP(F36,[1]主表!$A:$B,2,FALSE)*[1]主表!$D$1*[1]升级!$AC$4*(1+VLOOKUP(F36,[1]主表!$A:$F,6,FALSE)),2) -> 3148.66 | D36: =ROUND(VLOOKUP(F36,[1]主表!$A:$B,2,FALSE)*[1]主表!$D$1*[1]升级!$Z$4,2) -> 79.72 | E36: =ROUND(VLOOKUP(F36,[1]主表!$A:$B,2,FALSE)*[1]主表!$D$1*[1]升级!$W$4,2) -> 79.72 | F36: 64 | G36: 65 | H36: 1001;1006 | I36: 37976;950 | J36: 1001 | K36: =ROUND(40*VLOOKUP(G36,[2]ResourceLevelConfig!$A:$H,3,FALSE)/20,0) -> 37976 | L36: 1006 | M36: =ROUND(100*VLOOKUP(G36,[2]ResourceLevelConfig!$A:$H,8,FALSE)/20,0) -> 950 | N36: -1 | O36: 2 | Q36: -1
A37: 33 | B37: 1184 | C37: =ROUND(VLOOKUP(F37,[1]主表!$A:$B,2,FALSE)*[1]主表!$D$1*[1]升级!$AC$4*(1+VLOOKUP(F37,[1]主表!$A:$F,6,FALSE)),2) -> 3310.94 | D37: =ROUND(VLOOKUP(F37,[1]主表!$A:$B,2,FALSE)*[1]主表!$D$1*[1]升级!$Z$4,2) -> 81.88 | E37: =ROUND(VLOOKUP(F37,[1]主表!$A:$B,2,FALSE)*[1]主表!$D$1*[1]升级!$W$4,2) -> 81.88 | F37: 66 | G37: 67 | H37: =_xlfn.TEXTJOIN(";",1,J37,L37) -> 1001;1006 | I37: =_xlfn.TEXTJOIN(";",1,K37,M37) -> 38744;970 | J37: 1001 | K37: =ROUND(40*VLOOKUP(G37,[2]ResourceLevelConfig!$A:$H,3,FALSE)/20,0) -> 38744 | L37: 1006 | M37: =ROUND(100*VLOOKUP(G37,[2]ResourceLevelConfig!$A:$H,8,FALSE)/20,0) -> 970 | N37: -1 | O37: 2 | Q37: -1
A38: 34 | B38: 1279 | C38: =ROUND(VLOOKUP(F38,[1]主表!$A:$B,2,FALSE)*[1]主表!$D$1*[1]升级!$AC$4*(1+VLOOKUP(F38,[1]主表!$A:$F,6,FALSE)),2) -> 3479.72 | D38: =ROUND(VLOOKUP(F38,[1]主表!$A:$B,2,FALSE)*[1]主表!$D$1*[1]升级!$Z$4,2) -> 84.11 | E38: =ROUND(VLOOKUP(F38,[1]主表!$A:$B,2,FALSE)*[1]主表!$D$1*[1]升级!$W$4,2) -> 84.11 | F38: 68 | G38: 69 | H38: 1001;1006 | I38: 39530;990 | J38: 1001 | K38: =ROUND(40*VLOOKUP(G38,[2]ResourceLevelConfig!$A:$H,3,FALSE)/20,0) -> 39530 | L38: 1006 | M38: =ROUND(100*VLOOKUP(G38,[2]ResourceLevelConfig!$A:$H,8,FALSE)/20,0) -> 990 | N38: -1 | O38: 2 | Q38: -1
A39: 35 | B39: 1381 | C39: =ROUND(VLOOKUP(F39,[1]主表!$A:$B,2,FALSE)*[1]主表!$D$1*[1]升级!$AC$4*(1+VLOOKUP(F39,[1]主表!$A:$F,6,FALSE)),2) -> 3655.22 | D39: =ROUND(VLOOKUP(F39,[1]主表!$A:$B,2,FALSE)*[1]主表!$D$1*[1]升级!$Z$4,2) -> 86.4 | E39: =ROUND(VLOOKUP(F39,[1]主表!$A:$B,2,FALSE)*[1]主表!$D$1*[1]升级!$W$4,2) -> 86.4 | F39: 70 | G39: 71 | H39: 1001;1006 | I39: 40330;1010 | J39: 1001 | K39: =ROUND(40*VLOOKUP(G39,[2]ResourceLevelConfig!$A:$H,3,FALSE)/20,0) -> 40330 | L39: 1006 | M39: =ROUND(100*VLOOKUP(G39,[2]ResourceLevelConfig!$A:$H,8,FALSE)/20,0) -> 1010 | N39: -1 | O39: 2 | Q39: -1
A40: 36 | B40: 1491 | C40: =ROUND(VLOOKUP(F40,[1]主表!$A:$B,2,FALSE)*[1]主表!$D$1*[1]升级!$AC$4*(1+VLOOKUP(F40,[1]主表!$A:$F,6,FALSE)),2) -> 4165.23 | D40: =ROUND(VLOOKUP(F40,[1]主表!$A:$B,2,FALSE)*[1]主表!$D$1*[1]升级!$Z$4,2) -> 96.32 | E40: =ROUND(VLOOKUP(F40,[1]主表!$A:$B,2,FALSE)*[1]主表!$D$1*[1]升级!$W$4,2) -> 96.32 | F40: 72 | G40: 73 | H40: 1001;1006 | I40: 41146;1030 | J40: 1001 | K40: =ROUND(40*VLOOKUP(G40,[2]ResourceLevelConfig!$A:$H,3,FALSE)/20,0) -> 41146 | L40: 1006 | M40: =ROUND(100*VLOOKUP(G40,[2]ResourceLevelConfig!$A:$H,8,FALSE)/20,0) -> 1030 | N40: -1 | O40: 2 | Q40: -1
A41: 37 | B41: 1610 | C41: =ROUND(VLOOKUP(F41,[1]主表!$A:$B,2,FALSE)*[1]主表!$D$1*[1]升级!$AC$4*(1+VLOOKUP(F41,[1]主表!$A:$F,6,FALSE)),2) -> 4371.12 | D41: =ROUND(VLOOKUP(F41,[1]主表!$A:$B,2,FALSE)*[1]主表!$D$1*[1]升级!$Z$4,2) -> 98.94 | E41: =ROUND(VLOOKUP(F41,[1]主表!$A:$B,2,FALSE)*[1]主表!$D$1*[1]升级!$W$4,2) -> 98.94 | F41: 74 | G41: 75 | H41: 1001;1006 | I41: 41978;1050 | J41: 1001 | K41: =ROUND(40*VLOOKUP(G41,[2]ResourceLevelConfig!$A:$H,3,FALSE)/20,0) -> 41978 | L41: 1006 | M41: =ROUND(100*VLOOKUP(G41,[2]ResourceLevelConfig!$A:$H,8,FALSE)/20,0) -> 1050 | N41: -1 | O41: 2 | Q41: -1
A42: 38 | B42: 1739 | C42: =ROUND(VLOOKUP(F42,[1]主表!$A:$B,2,FALSE)*[1]主表!$D$1*[1]升级!$AC$4*(1+VLOOKUP(F42,[1]主表!$A:$F,6,FALSE)),2) -> 4585.12 | D42: =ROUND(VLOOKUP(F42,[1]主表!$A:$B,2,FALSE)*[1]主表!$D$1*[1]升级!$Z$4,2) -> 101.63 | E42: =ROUND(VLOOKUP(F42,[1]主表!$A:$B,2,FALSE)*[1]主表!$D$1*[1]升级!$W$4,2) -> 101.63 | F42: 76 | G42: 77 | H42: 1001;1006 | I42: 42828;1070 | J42: 1001 | K42: =ROUND(40*VLOOKUP(G42,[2]ResourceLevelConfig!$A:$H,3,FALSE)/20,0) -> 42828 | L42: 1006 | M42: =ROUND(100*VLOOKUP(G42,[2]ResourceLevelConfig!$A:$H,8,FALSE)/20,0) -> 1070 | N42: -1 | O42: 2 | Q42: -1
A43: 39 | B43: 1878 | C43: =ROUND(VLOOKUP(F43,[1]主表!$A:$B,2,FALSE)*[1]主表!$D$1*[1]升级!$AC$4*(1+VLOOKUP(F43,[1]主表!$A:$F,6,FALSE)),2) -> 4807.53 | D43: =ROUND(VLOOKUP(F43,[1]主表!$A:$B,2,FALSE)*[1]主表!$D$1*[1]升级!$Z$4,2) -> 104.39 | E43: =ROUND(VLOOKUP(F43,[1]主表!$A:$B,2,FALSE)*[1]主表!$D$1*[1]升级!$W$4,2) -> 104.39 | F43: 78 | G43: 79 | H43: 1001;1006 | I43: 43694;1090 | J43: 1001 | K43: =ROUND(40*VLOOKUP(G43,[2]ResourceLevelConfig!$A:$H,3,FALSE)/20,0) -> 43694 | L43: 1006 | M43: =ROUND(100*VLOOKUP(G43,[2]ResourceLevelConfig!$A:$H,8,FALSE)/20,0) -> 1090 | N43: -1 | O43: 2 | Q43: -1
A44: 40 | B44: 2028 | C44: =ROUND(VLOOKUP(F44,[1]主表!$A:$B,2,FALSE)*[1]主表!$D$1*[1]升级!$AC$4*(1+VLOOKUP(F44,[1]主表!$A:$F,6,FALSE)),2) -> 5038.64 | D44: =ROUND(VLOOKUP(F44,[1]主表!$A:$B,2,FALSE)*[1]主表!$D$1*[1]升级!$Z$4,2) -> 107.23 | E44: =ROUND(VLOOKUP(F44,[1]主表!$A:$B,2,FALSE)*[1]主表!$D$1*[1]升级!$W$4,2) -> 107.23 | F44: 80 | G44: 81 | H44: 1001;1006 | I44: 44580;1115 | J44: 1001 | K44: =ROUND(40*VLOOKUP(G44,[2]ResourceLevelConfig!$A:$H,3,FALSE)/20,0) -> 44580 | L44: 1006 | M44: =ROUND(100*VLOOKUP(G44,[2]ResourceLevelConfig!$A:$H,8,FALSE)/20,0) -> 1115 | N44: -1 | O44: 2 | Q44: -1
A45: 41 | B45: 2190 | C45: =ROUND(VLOOKUP(F45,[1]主表!$A:$B,2,FALSE)*[1]主表!$D$1*[1]升级!$AC$4*(1+VLOOKUP(F45,[1]主表!$A:$F,6,FALSE)),2) -> 5729.28 | D45: =ROUND(VLOOKUP(F45,[1]主表!$A:$B,2,FALSE)*[1]主表!$D$1*[1]升级!$Z$4,2) -> 119.54 | E45: =ROUND(VLOOKUP(F45,[1]主表!$A:$B,2,FALSE)*[1]主表!$D$1*[1]升级!$W$4,2) -> 119.54 | F45: 82 | G45: 83 | H45: 1001;1006 | I45: 45482;1135 | J45: 1001 | K45: =ROUND(40*VLOOKUP(G45,[2]ResourceLevelConfig!$A:$H,3,FALSE)/20,0) -> 45482 | L45: 1006 | M45: =ROUND(100*VLOOKUP(G45,[2]ResourceLevelConfig!$A:$H,8,FALSE)/20,0) -> 1135 | N45: -1 | O45: 2 | Q45: -1
A46: 42 | B46: 2365 | C46: =ROUND(VLOOKUP(F46,[1]主表!$A:$B,2,FALSE)*[1]主表!$D$1*[1]升级!$AC$4*(1+VLOOKUP(F46,[1]主表!$A:$F,6,FALSE)),2) -> 6000.03 | D46: =ROUND(VLOOKUP(F46,[1]主表!$A:$B,2,FALSE)*[1]主表!$D$1*[1]升级!$Z$4,2) -> 122.79 | E46: =ROUND(VLOOKUP(F46,[1]主表!$A:$B,2,FALSE)*[1]主表!$D$1*[1]升级!$W$4,2) -> 122.79 | F46: 84 | G46: 85 | H46: 1001;1006 | I46: 46402;1160 | J46: 1001 | K46: =ROUND(40*VLOOKUP(G46,[2]ResourceLevelConfig!$A:$H,3,FALSE)/20,0) -> 46402 | L46: 1006 | M46: =ROUND(100*VLOOKUP(G46,[2]ResourceLevelConfig!$A:$H,8,FALSE)/20,0) -> 1160 | N46: -1 | O46: 2 | Q46: -1
A47: 43 | B47: 2554 | C47: =ROUND(VLOOKUP(F47,[1]主表!$A:$B,2,FALSE)*[1]主表!$D$1*[1]升级!$AC$4*(1+VLOOKUP(F47,[1]主表!$A:$F,6,FALSE)),2) -> 6281.26 | D47: =ROUND(VLOOKUP(F47,[1]主表!$A:$B,2,FALSE)*[1]主表!$D$1*[1]升级!$Z$4,2) -> 126.13 | E47: =ROUND(VLOOKUP(F47,[1]主表!$A:$B,2,FALSE)*[1]主表!$D$1*[1]升级!$W$4,2) -> 126.13 | F47: 86 | G47: 87 | H47: 1001;1006 | I47: 47342;1185 | J47: 1001 | K47: =ROUND(40*VLOOKUP(G47,[2]ResourceLevelConfig!$A:$H,3,FALSE)/20,0) -> 47342 | L47: 1006 | M47: =ROUND(100*VLOOKUP(G47,[2]ResourceLevelConfig!$A:$H,8,FALSE)/20,0) -> 1185 | N47: -1 | O47: 2 | Q47: -1
A48: 44 | B48: 2758 | C48: =ROUND(VLOOKUP(F48,[1]主表!$A:$B,2,FALSE)*[1]主表!$D$1*[1]升级!$AC$4*(1+VLOOKUP(F48,[1]主表!$A:$F,6,FALSE)),2) -> 6573.35 | D48: =ROUND(VLOOKUP(F48,[1]主表!$A:$B,2,FALSE)*[1]主表!$D$1*[1]升级!$Z$4,2) -> 129.56 | E48: =ROUND(VLOOKUP(F48,[1]主表!$A:$B,2,FALSE)*[1]主表!$D$1*[1]升级!$W$4,2) -> 129.56 | F48: 88 | G48: 89 | H48: 1001;1006 | I48: 48300;1205 | J48: 1001 | K48: =ROUND(40*VLOOKUP(G48,[2]ResourceLevelConfig!$A:$H,3,FALSE)/20,0) -> 48300 | L48: 1006 | M48: =ROUND(100*VLOOKUP(G48,[2]ResourceLevelConfig!$A:$H,8,FALSE)/20,0) -> 1205 | N48: -1 | O48: 2 | Q48: -1
A49: 45 | B49: 2979 | C49: =ROUND(VLOOKUP(F49,[1]主表!$A:$B,2,FALSE)*[1]主表!$D$1*[1]升级!$AC$4*(1+VLOOKUP(F49,[1]主表!$A:$F,6,FALSE)),2) -> 6876.68 | D49: =ROUND(VLOOKUP(F49,[1]主表!$A:$B,2,FALSE)*[1]主表!$D$1*[1]升级!$Z$4,2) -> 133.08 | E49: =ROUND(VLOOKUP(F49,[1]主表!$A:$B,2,FALSE)*[1]主表!$D$1*[1]升级!$W$4,2) -> 133.08 | F49: 90 | G49: 91 | H49: 1001;1006 | I49: 49278;1230 | J49: 1001 | K49: =ROUND(40*VLOOKUP(G49,[2]ResourceLevelConfig!$A:$H,3,FALSE)/20,0) -> 49278 | L49: 1006 | M49: =ROUND(100*VLOOKUP(G49,[2]ResourceLevelConfig!$A:$H,8,FALSE)/20,0) -> 1230 | N49: -1 | O49: 2 | Q49: -1
A50: 46 | B50: 3217 | C50: =ROUND(VLOOKUP(F50,[1]主表!$A:$B,2,FALSE)*[1]主表!$D$1*[1]升级!$AC$4*(1+VLOOKUP(F50,[1]主表!$A:$F,6,FALSE)),2) -> 9224.59 | D50: =ROUND(VLOOKUP(F50,[1]主表!$A:$B,2,FALSE)*[1]主表!$D$1*[1]升级!$Z$4,2) -> 175.34 | E50: =ROUND(VLOOKUP(F50,[1]主表!$A:$B,2,FALSE)*[1]主表!$D$1*[1]升级!$W$4,2) -> 175.34 | F50: 92 | G50: 93 | H50: 1001;1006 | I50: 50274;1255 | J50: 1001 | K50: =ROUND(40*VLOOKUP(G50,[2]ResourceLevelConfig!$A:$H,3,FALSE)/20,0) -> 50274 | L50: 1006 | M50: =ROUND(100*VLOOKUP(G50,[2]ResourceLevelConfig!$A:$H,8,FALSE)/20,0) -> 1255 | N50: -1 | O50: 2 | Q50: -1
A51: 47 | B51: 3474 | C51: =ROUND(VLOOKUP(F51,[1]主表!$A:$B,2,FALSE)*[1]主表!$D$1*[1]升级!$AC$4*(1+VLOOKUP(F51,[1]主表!$A:$F,6,FALSE)),2) -> 9644.03 | D51: =ROUND(VLOOKUP(F51,[1]主表!$A:$B,2,FALSE)*[1]主表!$D$1*[1]升级!$Z$4,2) -> 180.11 | E51: =ROUND(VLOOKUP(F51,[1]主表!$A:$B,2,FALSE)*[1]主表!$D$1*[1]升级!$W$4,2) -> 180.11 | F51: 94 | G51: 95 | H51: 1001;1006 | I51: 51292;1280 | J51: 1001 | K51: =ROUND(40*VLOOKUP(G51,[2]ResourceLevelConfig!$A:$H,3,FALSE)/20,0) -> 51292 | L51: 1006 | M51: =ROUND(100*VLOOKUP(G51,[2]ResourceLevelConfig!$A:$H,8,FALSE)/20,0) -> 1280 | N51: -1 | O51: 2 | Q51: -1
A52: 48 | B52: 3752 | C52: =ROUND(VLOOKUP(F52,[1]主表!$A:$B,2,FALSE)*[1]主表!$D$1*[1]升级!$AC$4*(1+VLOOKUP(F52,[1]主表!$A:$F,6,FALSE)),2) -> 10079.46 | D52: =ROUND(VLOOKUP(F52,[1]主表!$A:$B,2,FALSE)*[1]主表!$D$1*[1]升级!$Z$4,2) -> 185.01 | E52: =ROUND(VLOOKUP(F52,[1]主表!$A:$B,2,FALSE)*[1]主表!$D$1*[1]升级!$W$4,2) -> 185.01 | F52: 96 | G52: 97 | H52: 1001;1006 | I52: 52330;1310 | J52: 1001 | K52: =ROUND(40*VLOOKUP(G52,[2]ResourceLevelConfig!$A:$H,3,FALSE)/20,0) -> 52330 | L52: 1006 | M52: =ROUND(100*VLOOKUP(G52,[2]ResourceLevelConfig!$A:$H,8,FALSE)/20,0) -> 1310 | N52: -1 | O52: 2 | Q52: -1
A53: 49 | B53: 4052 | C53: =ROUND(VLOOKUP(F53,[1]主表!$A:$B,2,FALSE)*[1]主表!$D$1*[1]升级!$AC$4*(1+VLOOKUP(F53,[1]主表!$A:$F,6,FALSE)),2) -> 10531.44 | D53: =ROUND(VLOOKUP(F53,[1]主表!$A:$B,2,FALSE)*[1]主表!$D$1*[1]升级!$Z$4,2) -> 190.04 | E53: =ROUND(VLOOKUP(F53,[1]主表!$A:$B,2,FALSE)*[1]主表!$D$1*[1]升级!$W$4,2) -> 190.04 | F53: 98 | G53: 99 | H53: 1001;1006 | I53: 53390;1335 | J53: 1001 | K53: =ROUND(40*VLOOKUP(G53,[2]ResourceLevelConfig!$A:$H,3,FALSE)/20,0) -> 53390 | L53: 1006 | M53: =ROUND(100*VLOOKUP(G53,[2]ResourceLevelConfig!$A:$H,8,FALSE)/20,0) -> 1335 | N53: -1 | O53: 2 | Q53: -1
A54: 50 | B54: 4376 | C54: =ROUND(VLOOKUP(F54,[1]主表!$A:$B,2,FALSE)*[1]主表!$D$1*[1]升级!$AC$4*(1+VLOOKUP(F54,[1]主表!$A:$F,6,FALSE)),2) -> 11000.55 | D54: =ROUND(VLOOKUP(F54,[1]主表!$A:$B,2,FALSE)*[1]主表!$D$1*[1]升级!$Z$4,2) -> 195.2 | E54: =ROUND(VLOOKUP(F54,[1]主表!$A:$B,2,FALSE)*[1]主表!$D$1*[1]升级!$W$4,2) -> 195.2 | F54: 100 | G54: 101 | H54: 1001;1006 | I54: 54470;1360 | J54: 1001 | K54: =ROUND(40*VLOOKUP(G54,[2]ResourceLevelConfig!$A:$H,3,FALSE)/20,0) -> 54470 | L54: 1006 | M54: =ROUND(100*VLOOKUP(G54,[2]ResourceLevelConfig!$A:$H,8,FALSE)/20,0) -> 1360 | N54: -1 | O54: 2 | Q54: -1
A55: 51 | B55: 4726 | C55: =ROUND(VLOOKUP(F55,[1]主表!$A:$B,2,FALSE)*[1]主表!$D$1*[1]升级!$AC$4*(1+VLOOKUP(F55,[1]主表!$A:$F,6,FALSE)),2) -> 12467.78 | D55: =ROUND(VLOOKUP(F55,[1]主表!$A:$B,2,FALSE)*[1]主表!$D$1*[1]升级!$Z$4,2) -> 217.62 | E55: =ROUND(VLOOKUP(F55,[1]主表!$A:$B,2,FALSE)*[1]主表!$D$1*[1]升级!$W$4,2) -> 217.62 | F55: 102 | G55: 103 | H55: 1001;1006 | I55: 55572;1390 | J55: 1001 | K55: =ROUND(40*VLOOKUP(G55,[2]ResourceLevelConfig!$A:$H,3,FALSE)/20,0) -> 55572 | L55: 1006 | M55: =ROUND(100*VLOOKUP(G55,[2]ResourceLevelConfig!$A:$H,8,FALSE)/20,0) -> 1390 | N55: -1 | O55: 2 | Q55: -1
A56: 52 | B56: 5104 | C56: =ROUND(VLOOKUP(F56,[1]主表!$A:$B,2,FALSE)*[1]主表!$D$1*[1]升级!$AC$4*(1+VLOOKUP(F56,[1]主表!$A:$F,6,FALSE)),2) -> 13016.06 | D56: =ROUND(VLOOKUP(F56,[1]主表!$A:$B,2,FALSE)*[1]主表!$D$1*[1]升级!$Z$4,2) -> 223.54 | E56: =ROUND(VLOOKUP(F56,[1]主表!$A:$B,2,FALSE)*[1]主表!$D$1*[1]升级!$W$4,2) -> 223.54 | F56: 104 | G56: 105 | H56: 1001;1006 | I56: 56698;1415 | J56: 1001 | K56: =ROUND(40*VLOOKUP(G56,[2]ResourceLevelConfig!$A:$H,3,FALSE)/20,0) -> 56698 | L56: 1006 | M56: =ROUND(100*VLOOKUP(G56,[2]ResourceLevelConfig!$A:$H,8,FALSE)/20,0) -> 1415 | N56: -1 | O56: 2 | Q56: -1
A57: 53 | B57: 5512 | C57: =ROUND(VLOOKUP(F57,[1]主表!$A:$B,2,FALSE)*[1]主表!$D$1*[1]升级!$AC$4*(1+VLOOKUP(F57,[1]主表!$A:$F,6,FALSE)),2) -> 13584.94 | D57: =ROUND(VLOOKUP(F57,[1]主表!$A:$B,2,FALSE)*[1]主表!$D$1*[1]升级!$Z$4,2) -> 229.62 | E57: =ROUND(VLOOKUP(F57,[1]主表!$A:$B,2,FALSE)*[1]主表!$D$1*[1]升级!$W$4,2) -> 229.62 | F57: 106 | G57: 107 | H57: 1001;1006 | I57: 57844;1445 | J57: 1001 | K57: =ROUND(40*VLOOKUP(G57,[2]ResourceLevelConfig!$A:$H,3,FALSE)/20,0) -> 57844 | L57: 1006 | M57: =ROUND(100*VLOOKUP(G57,[2]ResourceLevelConfig!$A:$H,8,FALSE)/20,0) -> 1445 | N57: -1 | O57: 2 | Q57: -1
A58: 54 | B58: 5953 | C58: =ROUND(VLOOKUP(F58,[1]主表!$A:$B,2,FALSE)*[1]主表!$D$1*[1]升级!$AC$4*(1+VLOOKUP(F58,[1]主表!$A:$F,6,FALSE)),2) -> 14175.13 | D58: =ROUND(VLOOKUP(F58,[1]主表!$A:$B,2,FALSE)*[1]主表!$D$1*[1]升级!$Z$4,2) -> 235.86 | E58: =ROUND(VLOOKUP(F58,[1]主表!$A:$B,2,FALSE)*[1]主表!$D$1*[1]升级!$W$4,2) -> 235.86 | F58: 108 | G58: 109 | H58: 1001;1006 | I58: 59016;1475 | J58: 1001 | K58: =ROUND(40*VLOOKUP(G58,[2]ResourceLevelConfig!$A:$H,3,FALSE)/20,0) -> 59016 | L58: 1006 | M58: =ROUND(100*VLOOKUP(G58,[2]ResourceLevelConfig!$A:$H,8,FALSE)/20,0) -> 1475 | N58: -1 | O58: 2 | Q58: -1
A59: 55 | B59: 6429 | C59: =ROUND(VLOOKUP(F59,[1]主表!$A:$B,2,FALSE)*[1]主表!$D$1*[1]升级!$AC$4*(1+VLOOKUP(F59,[1]主表!$A:$F,6,FALSE)),2) -> 14787.37 | D59: =ROUND(VLOOKUP(F59,[1]主表!$A:$B,2,FALSE)*[1]主表!$D$1*[1]升级!$Z$4,2) -> 242.27 | E59: =ROUND(VLOOKUP(F59,[1]主表!$A:$B,2,FALSE)*[1]主表!$D$1*[1]升级!$W$4,2) -> 242.27 | F59: 110 | G59: 111 | H59: 1001;1006 | I59: 60210;1505 | J59: 1001 | K59: =ROUND(40*VLOOKUP(G59,[2]ResourceLevelConfig!$A:$H,3,FALSE)/20,0) -> 60210 | L59: 1006 | M59: =ROUND(100*VLOOKUP(G59,[2]ResourceLevelConfig!$A:$H,8,FALSE)/20,0) -> 1505 | N59: -1 | O59: 2 | Q59: -1
A60: 56 | B60: 6943 | C60: =ROUND(VLOOKUP(F60,[1]主表!$A:$B,2,FALSE)*[1]主表!$D$1*[1]升级!$AC$4*(1+VLOOKUP(F60,[1]主表!$A:$F,6,FALSE)),2) -> 16738.66 | D60: =ROUND(VLOOKUP(F60,[1]主表!$A:$B,2,FALSE)*[1]主表!$D$1*[1]升级!$Z$4,2) -> 270.09 | E60: =ROUND(VLOOKUP(F60,[1]主表!$A:$B,2,FALSE)*[1]主表!$D$1*[1]升级!$W$4,2) -> 270.09 | F60: 112 | G60: 113 | H60: 1001;1006 | I60: 61428;1535 | J60: 1001 | K60: =ROUND(40*VLOOKUP(G60,[2]ResourceLevelConfig!$A:$H,3,FALSE)/20,0) -> 61428 | L60: 1006 | M60: =ROUND(100*VLOOKUP(G60,[2]ResourceLevelConfig!$A:$H,8,FALSE)/20,0) -> 1535 | N60: -1 | O60: 2 | Q60: -1
A61: 57 | B61: 7498 | C61: =ROUND(VLOOKUP(F61,[1]主表!$A:$B,2,FALSE)*[1]主表!$D$1*[1]升级!$AC$4*(1+VLOOKUP(F61,[1]主表!$A:$F,6,FALSE)),2) -> 17453.52 | D61: =ROUND(VLOOKUP(F61,[1]主表!$A:$B,2,FALSE)*[1]主表!$D$1*[1]升级!$Z$4,2) -> 277.44 | E61: =ROUND(VLOOKUP(F61,[1]主表!$A:$B,2,FALSE)*[1]主表!$D$1*[1]升级!$W$4,2) -> 277.44 | F61: 114 | G61: 115 | H61: 1001;1006 | I61: 62672;1565 | J61: 1001 | K61: =ROUND(40*VLOOKUP(G61,[2]ResourceLevelConfig!$A:$H,3,FALSE)/20,0) -> 62672 | L61: 1006 | M61: =ROUND(100*VLOOKUP(G61,[2]ResourceLevelConfig!$A:$H,8,FALSE)/20,0) -> 1565 | N61: -1 | O61: 2 | Q61: -1
A62: 58 | B62: 8098 | C62: =ROUND(VLOOKUP(F62,[1]主表!$A:$B,2,FALSE)*[1]主表!$D$1*[1]升级!$AC$4*(1+VLOOKUP(F62,[1]主表!$A:$F,6,FALSE)),2) -> 18194.89 | D62: =ROUND(VLOOKUP(F62,[1]主表!$A:$B,2,FALSE)*[1]主表!$D$1*[1]升级!$Z$4,2) -> 284.98 | E62: =ROUND(VLOOKUP(F62,[1]主表!$A:$B,2,FALSE)*[1]主表!$D$1*[1]升级!$W$4,2) -> 284.98 | F62: 116 | G62: 117 | H62: 1001;1006 | I62: 63940;1600 | J62: 1001 | K62: =ROUND(40*VLOOKUP(G62,[2]ResourceLevelConfig!$A:$H,3,FALSE)/20,0) -> 63940 | L62: 1006 | M62: =ROUND(100*VLOOKUP(G62,[2]ResourceLevelConfig!$A:$H,8,FALSE)/20,0) -> 1600 | N62: -1 | O62: 2 | Q62: -1
A63: 59 | B63: 8746 | C63: =ROUND(VLOOKUP(F63,[1]主表!$A:$B,2,FALSE)*[1]主表!$D$1*[1]升级!$AC$4*(1+VLOOKUP(F63,[1]主表!$A:$F,6,FALSE)),2) -> 18963.66 | D63: =ROUND(VLOOKUP(F63,[1]主表!$A:$B,2,FALSE)*[1]主表!$D$1*[1]升级!$Z$4,2) -> 292.73 | E63: =ROUND(VLOOKUP(F63,[1]主表!$A:$B,2,FALSE)*[1]主表!$D$1*[1]升级!$W$4,2) -> 292.73 | F63: 118 | G63: 119 | H63: 1001;1006 | I63: 65234;1630 | J63: 1001 | K63: =ROUND(40*VLOOKUP(G63,[2]ResourceLevelConfig!$A:$H,3,FALSE)/20,0) -> 65234 | L63: 1006 | M63: =ROUND(100*VLOOKUP(G63,[2]ResourceLevelConfig!$A:$H,8,FALSE)/20,0) -> 1630 | N63: -1 | O63: 2 | Q63: -1
A64: 60 | B64: 9446 | C64: =ROUND(VLOOKUP(F64,[1]主表!$A:$B,2,FALSE)*[1]主表!$D$1*[1]升级!$AC$4*(1+VLOOKUP(F64,[1]主表!$A:$F,6,FALSE)),2) -> 19760.78 | D64: =ROUND(VLOOKUP(F64,[1]主表!$A:$B,2,FALSE)*[1]主表!$D$1*[1]升级!$Z$4,2) -> 300.69 | E64: =ROUND(VLOOKUP(F64,[1]主表!$A:$B,2,FALSE)*[1]主表!$D$1*[1]升级!$W$4,2) -> 300.69 | F64: 120 | G64: 121 | H64: 1001;1006 | I64: 66556;1665 | J64: 1001 | K64: =ROUND(40*VLOOKUP(G64,[2]ResourceLevelConfig!$A:$H,3,FALSE)/20,0) -> 66556 | L64: 1006 | M64: =ROUND(100*VLOOKUP(G64,[2]ResourceLevelConfig!$A:$H,8,FALSE)/20,0) -> 1665 | N64: =_xlfn.TEXTJOIN(";",1,Q64:U64) -> -1;0;75;60;30 | O64: 3 | Q64: -1 | R64: 0 | S64: =[1]抽卡!$T$10 -> 75 | T64: =[1]抽卡!$T$11 -> 60 | U64: =[1]抽卡!$T$12 -> 30
A65: 61 | B65: 10202 | C65: =ROUND(VLOOKUP(F65,[1]主表!$A:$B,2,FALSE)*[1]主表!$D$1*[1]升级!$AC$4*(1+VLOOKUP(F65,[1]主表!$A:$F,6,FALSE)),2) -> 26406.86 | D65: =ROUND(VLOOKUP(F65,[1]主表!$A:$B,2,FALSE)*[1]主表!$D$1*[1]升级!$Z$4,2) -> 396.17 | E65: =ROUND(VLOOKUP(F65,[1]主表!$A:$B,2,FALSE)*[1]主表!$D$1*[1]升级!$W$4,2) -> 396.17 | F65: 122 | G65: 123 | H65: 1001;1006 | I65: 67902;1700 | J65: 1001 | K65: =ROUND(40*VLOOKUP(G65,[2]ResourceLevelConfig!$A:$H,3,FALSE)/20,0) -> 67902 | L65: 1006 | M65: =ROUND(100*VLOOKUP(G65,[2]ResourceLevelConfig!$A:$H,8,FALSE)/20,0) -> 1700 | N65: -1 | O65: 3 | Q65: -1
A66: 62 | B66: 11018 | C66: =ROUND(VLOOKUP(F66,[1]主表!$A:$B,2,FALSE)*[1]主表!$D$1*[1]升级!$AC$4*(1+VLOOKUP(F66,[1]主表!$A:$F,6,FALSE)),2) -> 27505.83 | D66: =ROUND(VLOOKUP(F66,[1]主表!$A:$B,2,FALSE)*[1]主表!$D$1*[1]升级!$Z$4,2) -> 406.94 | E66: =ROUND(VLOOKUP(F66,[1]主表!$A:$B,2,FALSE)*[1]主表!$D$1*[1]升级!$W$4,2) -> 406.94 | F66: 124 | G66: 125 | H66: 1001;1006 | I66: 69276;1730 | J66: 1001 | K66: =ROUND(40*VLOOKUP(G66,[2]ResourceLevelConfig!$A:$H,3,FALSE)/20,0) -> 69276 | L66: 1006 | M66: =ROUND(100*VLOOKUP(G66,[2]ResourceLevelConfig!$A:$H,8,FALSE)/20,0) -> 1730 | N66: -1 | O66: 3 | Q66: -1
A67: 63 | B67: 11899 | C67: =ROUND(VLOOKUP(F67,[1]主表!$A:$B,2,FALSE)*[1]主表!$D$1*[1]升级!$AC$4*(1+VLOOKUP(F67,[1]主表!$A:$F,6,FALSE)),2) -> 28645.05 | D67: =ROUND(VLOOKUP(F67,[1]主表!$A:$B,2,FALSE)*[1]主表!$D$1*[1]升级!$Z$4,2) -> 418 | E67: =ROUND(VLOOKUP(F67,[1]主表!$A:$B,2,FALSE)*[1]主表!$D$1*[1]升级!$W$4,2) -> 418 | F67: 126 | G67: 127 | H67: 1001;1006 | I67: 70678;1765 | J67: 1001 | K67: =ROUND(40*VLOOKUP(G67,[2]ResourceLevelConfig!$A:$H,3,FALSE)/20,0) -> 70678 | L67: 1006 | M67: =ROUND(100*VLOOKUP(G67,[2]ResourceLevelConfig!$A:$H,8,FALSE)/20,0) -> 1765 | N67: -1 | O67: 3 | Q67: -1
A68: 64 | B68: 12851 | C68: =ROUND(VLOOKUP(F68,[1]主表!$A:$B,2,FALSE)*[1]主表!$D$1*[1]升级!$AC$4*(1+VLOOKUP(F68,[1]主表!$A:$F,6,FALSE)),2) -> 29825.87 | D68: =ROUND(VLOOKUP(F68,[1]主表!$A:$B,2,FALSE)*[1]主表!$D$1*[1]升级!$Z$4,2) -> 429.37 | E68: =ROUND(VLOOKUP(F68,[1]主表!$A:$B,2,FALSE)*[1]主表!$D$1*[1]升级!$W$4,2) -> 429.37 | F68: 128 | G68: 129 | H68: 1001;1006 | I68: 72110;1805 | J68: 1001 | K68: =ROUND(40*VLOOKUP(G68,[2]ResourceLevelConfig!$A:$H,3,FALSE)/20,0) -> 72110 | L68: 1006 | M68: =ROUND(100*VLOOKUP(G68,[2]ResourceLevelConfig!$A:$H,8,FALSE)/20,0) -> 1805 | N68: -1 | O68: 3 | Q68: -1
A69: 65 | B69: 13879 | C69: =ROUND(VLOOKUP(F69,[1]主表!$A:$B,2,FALSE)*[1]主表!$D$1*[1]升级!$AC$4*(1+VLOOKUP(F69,[1]主表!$A:$F,6,FALSE)),2) -> 31049.73 | D69: =ROUND(VLOOKUP(F69,[1]主表!$A:$B,2,FALSE)*[1]主表!$D$1*[1]升级!$Z$4,2) -> 441.04 | E69: =ROUND(VLOOKUP(F69,[1]主表!$A:$B,2,FALSE)*[1]主表!$D$1*[1]升级!$W$4,2) -> 441.04 | F69: 130 | G69: 131 | H69: 1001;1006 | I69: 73570;1840 | J69: 1001 | K69: =ROUND(40*VLOOKUP(G69,[2]ResourceLevelConfig!$A:$H,3,FALSE)/20,0) -> 73570 | L69: 1006 | M69: =ROUND(100*VLOOKUP(G69,[2]ResourceLevelConfig!$A:$H,8,FALSE)/20,0) -> 1840 | N69: =_xlfn.TEXTJOIN(";",1,Q69:U69) -> -1 | O69: 3 | Q69: -1
A70: 66 | B70: 14989 | C70: =ROUND(VLOOKUP(F70,[1]主表!$A:$B,2,FALSE)*[1]主表!$D$1*[1]升级!$AC$4*(1+VLOOKUP(F70,[1]主表!$A:$F,6,FALSE)),2) -> 35076.3 | D70: =ROUND(VLOOKUP(F70,[1]主表!$A:$B,2,FALSE)*[1]主表!$D$1*[1]升级!$Z$4,2) -> 491.69 | E70: =ROUND(VLOOKUP(F70,[1]主表!$A:$B,2,FALSE)*[1]主表!$D$1*[1]升级!$W$4,2) -> 491.69 | F70: 132 | G70: 133 | H70: 1001;1006 | I70: 75058;1875 | J70: 1001 | K70: =ROUND(40*VLOOKUP(G70,[2]ResourceLevelConfig!$A:$H,3,FALSE)/20,0) -> 75058 | L70: 1006 | M70: =ROUND(100*VLOOKUP(G70,[2]ResourceLevelConfig!$A:$H,8,FALSE)/20,0) -> 1875 | N70: -1 | O70: 3 | Q70: -1
A71: 67 | B71: 16188 | C71: =ROUND(VLOOKUP(F71,[1]主表!$A:$B,2,FALSE)*[1]主表!$D$1*[1]升级!$AC$4*(1+VLOOKUP(F71,[1]主表!$A:$F,6,FALSE)),2) -> 36502.85 | D71: =ROUND(VLOOKUP(F71,[1]主表!$A:$B,2,FALSE)*[1]主表!$D$1*[1]升级!$Z$4,2) -> 505.06 | E71: =ROUND(VLOOKUP(F71,[1]主表!$A:$B,2,FALSE)*[1]主表!$D$1*[1]升级!$W$4,2) -> 505.06 | F71: 134 | G71: 135 | H71: 1001;1006 | I71: 76578;1915 | J71: 1001 | K71: =ROUND(40*VLOOKUP(G71,[2]ResourceLevelConfig!$A:$H,3,FALSE)/20,0) -> 76578 | L71: 1006 | M71: =ROUND(100*VLOOKUP(G71,[2]ResourceLevelConfig!$A:$H,8,FALSE)/20,0) -> 1915 | N71: -1 | O71: 3 | Q71: -1
A72: 68 | B72: 17483 | C72: =ROUND(VLOOKUP(F72,[1]主表!$A:$B,2,FALSE)*[1]主表!$D$1*[1]升级!$AC$4*(1+VLOOKUP(F72,[1]主表!$A:$F,6,FALSE)),2) -> 37981.04 | D72: =ROUND(VLOOKUP(F72,[1]主表!$A:$B,2,FALSE)*[1]主表!$D$1*[1]升级!$Z$4,2) -> 518.79 | E72: =ROUND(VLOOKUP(F72,[1]主表!$A:$B,2,FALSE)*[1]主表!$D$1*[1]升级!$W$4,2) -> 518.79 | F72: 136 | G72: 137 | H72: 1001;1006 | I72: 78128;1955 | J72: 1001 | K72: =ROUND(40*VLOOKUP(G72,[2]ResourceLevelConfig!$A:$H,3,FALSE)/20,0) -> 78128 | L72: 1006 | M72: =ROUND(100*VLOOKUP(G72,[2]ResourceLevelConfig!$A:$H,8,FALSE)/20,0) -> 1955 | N72: -1 | O72: 3 | Q72: -1
A73: 69 | B73: 18882 | C73: =ROUND(VLOOKUP(F73,[1]主表!$A:$B,2,FALSE)*[1]主表!$D$1*[1]升级!$AC$4*(1+VLOOKUP(F73,[1]主表!$A:$F,6,FALSE)),2) -> 39512.62 | D73: =ROUND(VLOOKUP(F73,[1]主表!$A:$B,2,FALSE)*[1]主表!$D$1*[1]升级!$Z$4,2) -> 532.89 | E73: =ROUND(VLOOKUP(F73,[1]主表!$A:$B,2,FALSE)*[1]主表!$D$1*[1]升级!$W$4,2) -> 532.89 | F73: 138 | G73: 139 | H73: 1001;1006 | I73: 79708;1995 | J73: 1001 | K73: =ROUND(40*VLOOKUP(G73,[2]ResourceLevelConfig!$A:$H,3,FALSE)/20,0) -> 79708 | L73: 1006 | M73: =ROUND(100*VLOOKUP(G73,[2]ResourceLevelConfig!$A:$H,8,FALSE)/20,0) -> 1995 | N73: -1 | O73: 3 | Q73: -1
A74: 70 | B74: 20393 | C74: =ROUND(VLOOKUP(F74,[1]主表!$A:$B,2,FALSE)*[1]主表!$D$1*[1]升级!$AC$4*(1+VLOOKUP(F74,[1]主表!$A:$F,6,FALSE)),2) -> 41099.41 | D74: =ROUND(VLOOKUP(F74,[1]主表!$A:$B,2,FALSE)*[1]主表!$D$1*[1]升级!$Z$4,2) -> 547.38 | E74: =ROUND(VLOOKUP(F74,[1]主表!$A:$B,2,FALSE)*[1]主表!$D$1*[1]升级!$W$4,2) -> 547.38 | F74: 140 | G74: 141 | H74: 1001;1006 | I74: 81322;2035 | J74: 1001 | K74: =ROUND(40*VLOOKUP(G74,[2]ResourceLevelConfig!$A:$H,3,FALSE)/20,0) -> 81322 | L74: 1006 | M74: =ROUND(100*VLOOKUP(G74,[2]ResourceLevelConfig!$A:$H,8,FALSE)/20,0) -> 2035 | N74: -1 | O74: 3 | Q74: -1
A75: 71 | B75: 22024 | C75: =ROUND(VLOOKUP(F75,[1]主表!$A:$B,2,FALSE)*[1]主表!$D$1*[1]升级!$AC$4*(1+VLOOKUP(F75,[1]主表!$A:$F,6,FALSE)),2) -> 46391.23 | D75: =ROUND(VLOOKUP(F75,[1]主表!$A:$B,2,FALSE)*[1]主表!$D$1*[1]升级!$Z$4,2) -> 610.25 | E75: =ROUND(VLOOKUP(F75,[1]主表!$A:$B,2,FALSE)*[1]主表!$D$1*[1]升级!$W$4,2) -> 610.25 | F75: 142 | G75: 143 | H75: 1001;1006 | I75: 82968;2075 | J75: 1001 | K75: =ROUND(40*VLOOKUP(G75,[2]ResourceLevelConfig!$A:$H,3,FALSE)/20,0) -> 82968 | L75: 1006 | M75: =ROUND(100*VLOOKUP(G75,[2]ResourceLevelConfig!$A:$H,8,FALSE)/20,0) -> 2075 | N75: -1 | O75: 3 | Q75: -1
A76: 72 | B76: 23786 | C76: =ROUND(VLOOKUP(F76,[1]主表!$A:$B,2,FALSE)*[1]主表!$D$1*[1]升级!$AC$4*(1+VLOOKUP(F76,[1]主表!$A:$F,6,FALSE)),2) -> 48239.43 | D76: =ROUND(VLOOKUP(F76,[1]主表!$A:$B,2,FALSE)*[1]主表!$D$1*[1]升级!$Z$4,2) -> 626.84 | E76: =ROUND(VLOOKUP(F76,[1]主表!$A:$B,2,FALSE)*[1]主表!$D$1*[1]升级!$W$4,2) -> 626.84 | F76: 144 | G76: 145 | H76: 1001;1006 | I76: 84648;2115 | J76: 1001 | K76: =ROUND(40*VLOOKUP(G76,[2]ResourceLevelConfig!$A:$H,3,FALSE)/20,0) -> 84648 | L76: 1006 | M76: =ROUND(100*VLOOKUP(G76,[2]ResourceLevelConfig!$A:$H,8,FALSE)/20,0) -> 2115 | N76: -1 | O76: 3 | Q76: -1
A77: 73 | B77: 25689 | C77: =ROUND(VLOOKUP(F77,[1]主表!$A:$B,2,FALSE)*[1]主表!$D$1*[1]升级!$AC$4*(1+VLOOKUP(F77,[1]主表!$A:$F,6,FALSE)),2) -> 50153.83 | D77: =ROUND(VLOOKUP(F77,[1]主表!$A:$B,2,FALSE)*[1]主表!$D$1*[1]升级!$Z$4,2) -> 643.88 | E77: =ROUND(VLOOKUP(F77,[1]主表!$A:$B,2,FALSE)*[1]主表!$D$1*[1]升级!$W$4,2) -> 643.88 | F77: 146 | G77: 147 | H77: 1001;1006 | I77: 86360;2160 | J77: 1001 | K77: =ROUND(40*VLOOKUP(G77,[2]ResourceLevelConfig!$A:$H,3,FALSE)/20,0) -> 86360 | L77: 1006 | M77: =ROUND(100*VLOOKUP(G77,[2]ResourceLevelConfig!$A:$H,8,FALSE)/20,0) -> 2160 | N77: -1 | O77: 3 | Q77: -1
A78: 74 | B78: 27744 | C78: =ROUND(VLOOKUP(F78,[1]主表!$A:$B,2,FALSE)*[1]主表!$D$1*[1]升级!$AC$4*(1+VLOOKUP(F78,[1]主表!$A:$F,6,FALSE)),2) -> 52136.67 | D78: =ROUND(VLOOKUP(F78,[1]主表!$A:$B,2,FALSE)*[1]主表!$D$1*[1]升级!$Z$4,2) -> 661.39 | E78: =ROUND(VLOOKUP(F78,[1]主表!$A:$B,2,FALSE)*[1]主表!$D$1*[1]升级!$W$4,2) -> 661.39 | F78: 148 | G78: 149 | H78: 1001;1006 | I78: 88108;2205 | J78: 1001 | K78: =ROUND(40*VLOOKUP(G78,[2]ResourceLevelConfig!$A:$H,3,FALSE)/20,0) -> 88108 | L78: 1006 | M78: =ROUND(100*VLOOKUP(G78,[2]ResourceLevelConfig!$A:$H,8,FALSE)/20,0) -> 2205 | N78: -1 | O78: 3 | Q78: -1
A79: 75 | B79: 29964 | C79: =ROUND(VLOOKUP(F79,[1]主表!$A:$B,2,FALSE)*[1]主表!$D$1*[1]升级!$AC$4*(1+VLOOKUP(F79,[1]主表!$A:$F,6,FALSE)),2) -> 54190.25 | D79: =ROUND(VLOOKUP(F79,[1]主表!$A:$B,2,FALSE)*[1]主表!$D$1*[1]升级!$Z$4,2) -> 679.37 | E79: =ROUND(VLOOKUP(F79,[1]主表!$A:$B,2,FALSE)*[1]主表!$D$1*[1]升级!$W$4,2) -> 679.37 | F79: 150 | G79: 151 | H79: 1001;1006 | I79: 89892;2245 | J79: 1001 | K79: =ROUND(40*VLOOKUP(G79,[2]ResourceLevelConfig!$A:$H,3,FALSE)/20,0) -> 89892 | L79: 1006 | M79: =ROUND(100*VLOOKUP(G79,[2]ResourceLevelConfig!$A:$H,8,FALSE)/20,0) -> 2245 | N79: -1 | O79: 3 | Q79: -1
A80: 76 | B80: 32361 | C80: =ROUND(VLOOKUP(F80,[1]主表!$A:$B,2,FALSE)*[1]主表!$D$1*[1]升级!$AC$4*(1+VLOOKUP(F80,[1]主表!$A:$F,6,FALSE)),2) -> 72236.71 | D80: =ROUND(VLOOKUP(F80,[1]主表!$A:$B,2,FALSE)*[1]主表!$D$1*[1]升级!$Z$4,2) -> 895.1 | E80: =ROUND(VLOOKUP(F80,[1]主表!$A:$B,2,FALSE)*[1]主表!$D$1*[1]升级!$W$4,2) -> 895.1 | F80: 152 | G80: 153 | H80: 1001;1006 | I80: 91712;2295 | J80: 1001 | K80: =ROUND(40*VLOOKUP(G80,[2]ResourceLevelConfig!$A:$H,3,FALSE)/20,0) -> 91712 | L80: 1006 | M80: =ROUND(100*VLOOKUP(G80,[2]ResourceLevelConfig!$A:$H,8,FALSE)/20,0) -> 2295 | N80: -1 | O80: 3 | Q80: -1
A81: 77 | B81: 34950 | C81: =ROUND(VLOOKUP(F81,[1]主表!$A:$B,2,FALSE)*[1]主表!$D$1*[1]升级!$AC$4*(1+VLOOKUP(F81,[1]主表!$A:$F,6,FALSE)),2) -> 75061.55 | D81: =ROUND(VLOOKUP(F81,[1]主表!$A:$B,2,FALSE)*[1]主表!$D$1*[1]升级!$Z$4,2) -> 919.43 | E81: =ROUND(VLOOKUP(F81,[1]主表!$A:$B,2,FALSE)*[1]主表!$D$1*[1]升级!$W$4,2) -> 919.43 | F81: 154 | G81: 155 | H81: 1001;1006 | I81: 93568;2340 | J81: 1001 | K81: =ROUND(40*VLOOKUP(G81,[2]ResourceLevelConfig!$A:$H,3,FALSE)/20,0) -> 93568 | L81: 1006 | M81: =ROUND(100*VLOOKUP(G81,[2]ResourceLevelConfig!$A:$H,8,FALSE)/20,0) -> 2340 | N81: -1 | O81: 3 | Q81: -1
A82: 78 | B82: 37746 | C82: =ROUND(VLOOKUP(F82,[1]主表!$A:$B,2,FALSE)*[1]主表!$D$1*[1]升级!$AC$4*(1+VLOOKUP(F82,[1]主表!$A:$F,6,FALSE)),2) -> 77986.58 | D82: =ROUND(VLOOKUP(F82,[1]主表!$A:$B,2,FALSE)*[1]主表!$D$1*[1]升级!$Z$4,2) -> 944.43 | E82: =ROUND(VLOOKUP(F82,[1]主表!$A:$B,2,FALSE)*[1]主表!$D$1*[1]升级!$W$4,2) -> 944.43 | F82: 156 | G82: 157 | H82: 1001;1006 | I82: 95462;2385 | J82: 1001 | K82: =ROUND(40*VLOOKUP(G82,[2]ResourceLevelConfig!$A:$H,3,FALSE)/20,0) -> 95462 | L82: 1006 | M82: =ROUND(100*VLOOKUP(G82,[2]ResourceLevelConfig!$A:$H,8,FALSE)/20,0) -> 2385 | N82: -1 | O82: 3 | Q82: -1
A83: 79 | B83: 40766 | C83: =ROUND(VLOOKUP(F83,[1]主表!$A:$B,2,FALSE)*[1]主表!$D$1*[1]升级!$AC$4*(1+VLOOKUP(F83,[1]主表!$A:$F,6,FALSE)),2) -> 81015.18 | D83: =ROUND(VLOOKUP(F83,[1]主表!$A:$B,2,FALSE)*[1]主表!$D$1*[1]升级!$Z$4,2) -> 970.11 | E83: =ROUND(VLOOKUP(F83,[1]主表!$A:$B,2,FALSE)*[1]主表!$D$1*[1]升级!$W$4,2) -> 970.11 | F83: 158 | G83: 159 | H83: 1001;1006 | I83: 97394;2435 | J83: 1001 | K83: =ROUND(40*VLOOKUP(G83,[2]ResourceLevelConfig!$A:$H,3,FALSE)/20,0) -> 97394 | L83: 1006 | M83: =ROUND(100*VLOOKUP(G83,[2]ResourceLevelConfig!$A:$H,8,FALSE)/20,0) -> 2435 | N83: -1 | O83: 3 | Q83: -1
A84: 80 | B84: 44027 | C84: =ROUND(VLOOKUP(F84,[1]主表!$A:$B,2,FALSE)*[1]主表!$D$1*[1]升级!$AC$4*(1+VLOOKUP(F84,[1]主表!$A:$F,6,FALSE)),2) -> 84150.81 | D84: =ROUND(VLOOKUP(F84,[1]主表!$A:$B,2,FALSE)*[1]主表!$D$1*[1]升级!$Z$4,2) -> 996.48 | E84: =ROUND(VLOOKUP(F84,[1]主表!$A:$B,2,FALSE)*[1]主表!$D$1*[1]升级!$W$4,2) -> 996.48 | F84: 160 | G84: 161 | H84: 1001;1006 | I84: 99364;2485 | J84: 1001 | K84: =ROUND(40*VLOOKUP(G84,[2]ResourceLevelConfig!$A:$H,3,FALSE)/20,0) -> 99364 | L84: 1006 | M84: =ROUND(100*VLOOKUP(G84,[2]ResourceLevelConfig!$A:$H,8,FALSE)/20,0) -> 2485 | N84: -1 | O84: 3 | Q84: -1
A85: 81 | B85: 47549 | C85: =ROUND(VLOOKUP(F85,[1]主表!$A:$B,2,FALSE)*[1]主表!$D$1*[1]升级!$AC$4*(1+VLOOKUP(F85,[1]主表!$A:$F,6,FALSE)),2) -> 94856.04 | D85: =ROUND(VLOOKUP(F85,[1]主表!$A:$B,2,FALSE)*[1]主表!$D$1*[1]升级!$Z$4,2) -> 1110.93 | E85: =ROUND(VLOOKUP(F85,[1]主表!$A:$B,2,FALSE)*[1]主表!$D$1*[1]升级!$W$4,2) -> 1110.93 | F85: 162 | G85: 163 | H85: 1001;1006 | I85: 101376;2535 | J85: 1001 | K85: =ROUND(40*VLOOKUP(G85,[2]ResourceLevelConfig!$A:$H,3,FALSE)/20,0) -> 101376 | L85: 1006 | M85: =ROUND(100*VLOOKUP(G85,[2]ResourceLevelConfig!$A:$H,8,FALSE)/20,0) -> 2535 | N85: -1 | O85: 3 | Q85: -1
A86: 82 | B86: 51353 | C86: =ROUND(VLOOKUP(F86,[1]主表!$A:$B,2,FALSE)*[1]主表!$D$1*[1]升级!$AC$4*(1+VLOOKUP(F86,[1]主表!$A:$F,6,FALSE)),2) -> 98503.4 | D86: =ROUND(VLOOKUP(F86,[1]主表!$A:$B,2,FALSE)*[1]主表!$D$1*[1]升级!$Z$4,2) -> 1141.13 | E86: =ROUND(VLOOKUP(F86,[1]主表!$A:$B,2,FALSE)*[1]主表!$D$1*[1]升级!$W$4,2) -> 1141.13 | F86: 164 | G86: 165 | H86: 1001;1006 | I86: 103428;2585 | J86: 1001 | K86: =ROUND(40*VLOOKUP(G86,[2]ResourceLevelConfig!$A:$H,3,FALSE)/20,0) -> 103428 | L86: 1006 | M86: =ROUND(100*VLOOKUP(G86,[2]ResourceLevelConfig!$A:$H,8,FALSE)/20,0) -> 2585 | N86: -1 | O86: 3 | Q86: -1
A87: 83 | B87: 55461 | C87: =ROUND(VLOOKUP(F87,[1]主表!$A:$B,2,FALSE)*[1]主表!$D$1*[1]升级!$AC$4*(1+VLOOKUP(F87,[1]主表!$A:$F,6,FALSE)),2) -> 102278.98 | D87: =ROUND(VLOOKUP(F87,[1]主表!$A:$B,2,FALSE)*[1]主表!$D$1*[1]升级!$Z$4,2) -> 1172.15 | E87: =ROUND(VLOOKUP(F87,[1]主表!$A:$B,2,FALSE)*[1]主表!$D$1*[1]升级!$W$4,2) -> 1172.15 | F87: 166 | G87: 167 | H87: 1001;1006 | I87: 105522;2640 | J87: 1001 | K87: =ROUND(40*VLOOKUP(G87,[2]ResourceLevelConfig!$A:$H,3,FALSE)/20,0) -> 105522 | L87: 1006 | M87: =ROUND(100*VLOOKUP(G87,[2]ResourceLevelConfig!$A:$H,8,FALSE)/20,0) -> 2640 | N87: -1 | O87: 3 | Q87: -1
A88: 84 | B88: 59898 | C88: =ROUND(VLOOKUP(F88,[1]主表!$A:$B,2,FALSE)*[1]主表!$D$1*[1]升级!$AC$4*(1+VLOOKUP(F88,[1]主表!$A:$F,6,FALSE)),2) -> 106187.04 | D88: =ROUND(VLOOKUP(F88,[1]主表!$A:$B,2,FALSE)*[1]主表!$D$1*[1]升级!$Z$4,2) -> 1204.02 | E88: =ROUND(VLOOKUP(F88,[1]主表!$A:$B,2,FALSE)*[1]主表!$D$1*[1]升级!$W$4,2) -> 1204.02 | F88: 168 | G88: 169 | H88: 1001;1006 | I88: 107658;2690 | J88: 1001 | K88: =ROUND(40*VLOOKUP(G88,[2]ResourceLevelConfig!$A:$H,3,FALSE)/20,0) -> 107658 | L88: 1006 | M88: =ROUND(100*VLOOKUP(G88,[2]ResourceLevelConfig!$A:$H,8,FALSE)/20,0) -> 2690 | N88: -1 | O88: 3 | Q88: -1
A89: 85 | B89: 64690 | C89: =ROUND(VLOOKUP(F89,[1]主表!$A:$B,2,FALSE)*[1]主表!$D$1*[1]升级!$AC$4*(1+VLOOKUP(F89,[1]主表!$A:$F,6,FALSE)),2) -> 110232 | D89: =ROUND(VLOOKUP(F89,[1]主表!$A:$B,2,FALSE)*[1]主表!$D$1*[1]升级!$Z$4,2) -> 1236.75 | E89: =ROUND(VLOOKUP(F89,[1]主表!$A:$B,2,FALSE)*[1]主表!$D$1*[1]升级!$W$4,2) -> 1236.75 | F89: 170 | G89: 171 | H89: 1001;1006 | I89: 109836;2745 | J89: 1001 | K89: =ROUND(40*VLOOKUP(G89,[2]ResourceLevelConfig!$A:$H,3,FALSE)/20,0) -> 109836 | L89: 1006 | M89: =ROUND(100*VLOOKUP(G89,[2]ResourceLevelConfig!$A:$H,8,FALSE)/20,0) -> 2745 | N89: -1 | O89: 3 | Q89: -1
A90: 86 | B90: 69865 | C90: =ROUND(VLOOKUP(F90,[1]主表!$A:$B,2,FALSE)*[1]主表!$D$1*[1]升级!$AC$4*(1+VLOOKUP(F90,[1]主表!$A:$F,6,FALSE)),2) -> 124183.54 | D90: =ROUND(VLOOKUP(F90,[1]主表!$A:$B,2,FALSE)*[1]主表!$D$1*[1]升级!$Z$4,2) -> 1378.79 | E90: =ROUND(VLOOKUP(F90,[1]主表!$A:$B,2,FALSE)*[1]主表!$D$1*[1]升级!$W$4,2) -> 1378.79 | F90: 172 | G90: 173 | H90: 1001;1006 | I90: 112060;2800 | J90: 1001 | K90: =ROUND(40*VLOOKUP(G90,[2]ResourceLevelConfig!$A:$H,3,FALSE)/20,0) -> 112060 | L90: 1006 | M90: =ROUND(100*VLOOKUP(G90,[2]ResourceLevelConfig!$A:$H,8,FALSE)/20,0) -> 2800 | N90: -1 | O90: 3 | Q90: -1
A91: 87 | B91: 75454 | C91: =ROUND(VLOOKUP(F91,[1]主表!$A:$B,2,FALSE)*[1]主表!$D$1*[1]升级!$AC$4*(1+VLOOKUP(F91,[1]主表!$A:$F,6,FALSE)),2) -> 128885.87 | D91: =ROUND(VLOOKUP(F91,[1]主表!$A:$B,2,FALSE)*[1]主表!$D$1*[1]升级!$Z$4,2) -> 1416.28 | E91: =ROUND(VLOOKUP(F91,[1]主表!$A:$B,2,FALSE)*[1]主表!$D$1*[1]升级!$W$4,2) -> 1416.28 | F91: 174 | G91: 175 | H91: 1001;1006 | I91: 114328;2860 | J91: 1001 | K91: =ROUND(40*VLOOKUP(G91,[2]ResourceLevelConfig!$A:$H,3,FALSE)/20,0) -> 114328 | L91: 1006 | M91: =ROUND(100*VLOOKUP(G91,[2]ResourceLevelConfig!$A:$H,8,FALSE)/20,0) -> 2860 | N91: -1 | O91: 3 | Q91: -1
A92: 88 | B92: 81490 | C92: =ROUND(VLOOKUP(F92,[1]主表!$A:$B,2,FALSE)*[1]主表!$D$1*[1]升级!$AC$4*(1+VLOOKUP(F92,[1]主表!$A:$F,6,FALSE)),2) -> 133752.09 | D92: =ROUND(VLOOKUP(F92,[1]主表!$A:$B,2,FALSE)*[1]主表!$D$1*[1]升级!$Z$4,2) -> 1454.78 | E92: =ROUND(VLOOKUP(F92,[1]主表!$A:$B,2,FALSE)*[1]主表!$D$1*[1]升级!$W$4,2) -> 1454.78 | F92: 176 | G92: 177 | H92: 1001;1006 | I92: 116642;2915 | J92: 1001 | K92: =ROUND(40*VLOOKUP(G92,[2]ResourceLevelConfig!$A:$H,3,FALSE)/20,0) -> 116642 | L92: 1006 | M92: =ROUND(100*VLOOKUP(G92,[2]ResourceLevelConfig!$A:$H,8,FALSE)/20,0) -> 2915 | N92: -1 | O92: 3 | Q92: -1
A93: 89 | B93: 88009 | C93: =ROUND(VLOOKUP(F93,[1]主表!$A:$B,2,FALSE)*[1]主表!$D$1*[1]升级!$AC$4*(1+VLOOKUP(F93,[1]主表!$A:$F,6,FALSE)),2) -> 138787.64 | D93: =ROUND(VLOOKUP(F93,[1]主表!$A:$B,2,FALSE)*[1]主表!$D$1*[1]升级!$Z$4,2) -> 1494.33 | E93: =ROUND(VLOOKUP(F93,[1]主表!$A:$B,2,FALSE)*[1]主表!$D$1*[1]升级!$W$4,2) -> 1494.33 | F93: 178 | G93: 179 | H93: 1001;1006 | I93: 119002;2975 | J93: 1001 | K93: =ROUND(40*VLOOKUP(G93,[2]ResourceLevelConfig!$A:$H,3,FALSE)/20,0) -> 119002 | L93: 1006 | M93: =ROUND(100*VLOOKUP(G93,[2]ResourceLevelConfig!$A:$H,8,FALSE)/20,0) -> 2975 | N93: -1 | O93: 3 | Q93: -1
A94: 90 | B94: 95050 | C94: =ROUND(VLOOKUP(F94,[1]主表!$A:$B,2,FALSE)*[1]主表!$D$1*[1]升级!$AC$4*(1+VLOOKUP(F94,[1]主表!$A:$F,6,FALSE)),2) -> 143998.12 | D94: =ROUND(VLOOKUP(F94,[1]主表!$A:$B,2,FALSE)*[1]主表!$D$1*[1]升级!$Z$4,2) -> 1534.95 | E94: =ROUND(VLOOKUP(F94,[1]主表!$A:$B,2,FALSE)*[1]主表!$D$1*[1]升级!$W$4,2) -> 1534.95 | F94: 180 | G94: 181 | H94: 1001;1006 | I94: 121412;3035 | J94: 1001 | K94: =ROUND(40*VLOOKUP(G94,[2]ResourceLevelConfig!$A:$H,3,FALSE)/20,0) -> 121412 | L94: 1006 | M94: =ROUND(100*VLOOKUP(G94,[2]ResourceLevelConfig!$A:$H,8,FALSE)/20,0) -> 3035 | N94: =_xlfn.TEXTJOIN(";",1,Q94:U94) -> -1;0;120;90;60 | O94: 4 | Q94: -1 | R94: 0 | S94: =[1]抽卡!$U$10 -> 120 | T94: =[1]抽卡!$U$11 -> 90 | U94: =[1]抽卡!$U$12 -> 60
A95: 91 | B95: 102654 | C95: =ROUND(VLOOKUP(F95,[1]主表!$A:$B,2,FALSE)*[1]主表!$D$1*[1]升级!$AC$4*(1+VLOOKUP(F95,[1]主表!$A:$F,6,FALSE)),2) -> 191618.94 | D95: =ROUND(VLOOKUP(F95,[1]主表!$A:$B,2,FALSE)*[1]主表!$D$1*[1]升级!$Z$4,2) -> 2022.38 | E95: =ROUND(VLOOKUP(F95,[1]主表!$A:$B,2,FALSE)*[1]主表!$D$1*[1]升级!$W$4,2) -> 2022.38 | F95: 182 | G95: 183 | H95: 1001;1006 | I95: 123868;3095 | J95: 1001 | K95: =ROUND(40*VLOOKUP(G95,[2]ResourceLevelConfig!$A:$H,3,FALSE)/20,0) -> 123868 | L95: 1006 | M95: =ROUND(100*VLOOKUP(G95,[2]ResourceLevelConfig!$A:$H,8,FALSE)/20,0) -> 3095 | N95: -1 | O95: 4 | Q95: -1
A96: 92 | B96: 110866 | C96: =ROUND(VLOOKUP(F96,[1]主表!$A:$B,2,FALSE)*[1]主表!$D$1*[1]升级!$AC$4*(1+VLOOKUP(F96,[1]主表!$A:$F,6,FALSE)),2) -> 198773.64 | D96: =ROUND(VLOOKUP(F96,[1]主表!$A:$B,2,FALSE)*[1]主表!$D$1*[1]升级!$Z$4,2) -> 2077.36 | E96: =ROUND(VLOOKUP(F96,[1]主表!$A:$B,2,FALSE)*[1]主表!$D$1*[1]升级!$W$4,2) -> 2077.36 | F96: 184 | G96: 185 | H96: 1001;1006 | I96: 126376;3160 | J96: 1001 | K96: =ROUND(40*VLOOKUP(G96,[2]ResourceLevelConfig!$A:$H,3,FALSE)/20,0) -> 126376 | L96: 1006 | M96: =ROUND(100*VLOOKUP(G96,[2]ResourceLevelConfig!$A:$H,8,FALSE)/20,0) -> 3160 | N96: -1 | O96: 4 | Q96: -1
A97: 93 | B97: 119735 | C97: =ROUND(VLOOKUP(F97,[1]主表!$A:$B,2,FALSE)*[1]主表!$D$1*[1]升级!$AC$4*(1+VLOOKUP(F97,[1]主表!$A:$F,6,FALSE)),2) -> 206175.73 | D97: =ROUND(VLOOKUP(F97,[1]主表!$A:$B,2,FALSE)*[1]主表!$D$1*[1]升级!$Z$4,2) -> 2133.84 | E97: =ROUND(VLOOKUP(F97,[1]主表!$A:$B,2,FALSE)*[1]主表!$D$1*[1]升级!$W$4,2) -> 2133.84 | F97: 186 | G97: 187 | H97: 1001;1006 | I97: 128934;3225 | J97: 1001 | K97: =ROUND(40*VLOOKUP(G97,[2]ResourceLevelConfig!$A:$H,3,FALSE)/20,0) -> 128934 | L97: 1006 | M97: =ROUND(100*VLOOKUP(G97,[2]ResourceLevelConfig!$A:$H,8,FALSE)/20,0) -> 3225 | N97: -1 | O97: 4 | Q97: -1
A98: 94 | B98: 129314 | C98: =ROUND(VLOOKUP(F98,[1]主表!$A:$B,2,FALSE)*[1]主表!$D$1*[1]升级!$AC$4*(1+VLOOKUP(F98,[1]主表!$A:$F,6,FALSE)),2) -> 213833.38 | D98: =ROUND(VLOOKUP(F98,[1]主表!$A:$B,2,FALSE)*[1]主表!$D$1*[1]升级!$Z$4,2) -> 2191.85 | E98: =ROUND(VLOOKUP(F98,[1]主表!$A:$B,2,FALSE)*[1]主表!$D$1*[1]升级!$W$4,2) -> 2191.85 | F98: 188 | G98: 189 | H98: 1001;1006 | I98: 131544;3290 | J98: 1001 | K98: =ROUND(40*VLOOKUP(G98,[2]ResourceLevelConfig!$A:$H,3,FALSE)/20,0) -> 131544 | L98: 1006 | M98: =ROUND(100*VLOOKUP(G98,[2]ResourceLevelConfig!$A:$H,8,FALSE)/20,0) -> 3290 | N98: -1 | O98: 4 | Q98: -1
A99: 95 | B99: 139659 | C99: =ROUND(VLOOKUP(F99,[1]主表!$A:$B,2,FALSE)*[1]主表!$D$1*[1]升级!$AC$4*(1+VLOOKUP(F99,[1]主表!$A:$F,6,FALSE)),2) -> 221755.01 | D99: =ROUND(VLOOKUP(F99,[1]主表!$A:$B,2,FALSE)*[1]主表!$D$1*[1]升级!$Z$4,2) -> 2251.43 | E99: =ROUND(VLOOKUP(F99,[1]主表!$A:$B,2,FALSE)*[1]主表!$D$1*[1]升级!$W$4,2) -> 2251.43 | F99: 190 | G99: 191 | H99: 1001;1006 | I99: 134206;3355 | J99: 1001 | K99: =ROUND(40*VLOOKUP(G99,[2]ResourceLevelConfig!$A:$H,3,FALSE)/20,0) -> 134206 | L99: 1006 | M99: =ROUND(100*VLOOKUP(G99,[2]ResourceLevelConfig!$A:$H,8,FALSE)/20,0) -> 3355 | N99: -1 | O99: 4 | Q99: -1
A100: 96 | B100: =ROUND(B99*P$4,0) -> 150832 | C100: =ROUND(VLOOKUP(F100,[1]主表!$A:$B,2,FALSE)*[1]主表!$D$1*[1]升级!$AC$4*(1+VLOOKUP(F100,[1]主表!$A:$F,6,FALSE)),2) -> 249574.54 | D100: =ROUND(VLOOKUP(F100,[1]主表!$A:$B,2,FALSE)*[1]主表!$D$1*[1]升级!$Z$4,2) -> 2510.02 | E100: =ROUND(VLOOKUP(F100,[1]主表!$A:$B,2,FALSE)*[1]主表!$D$1*[1]升级!$W$4,2) -> 2510.02 | F100: 192 | G100: 193 | H100: 1001;1006 | I100: 136922;3425 | J100: 1001 | K100: =ROUND(40*VLOOKUP(G100,[2]ResourceLevelConfig!$A:$H,3,FALSE)/20,0) -> 136922 | L100: 1006 | M100: =ROUND(100*VLOOKUP(G100,[2]ResourceLevelConfig!$A:$H,8,FALSE)/20,0) -> 3425 | N100: -1 | O100: 4 | Q100: -1
A101: 97 | B101: 162899 | C101: =ROUND(VLOOKUP(F101,[1]主表!$A:$B,2,FALSE)*[1]主表!$D$1*[1]升级!$AC$4*(1+VLOOKUP(F101,[1]主表!$A:$F,6,FALSE)),2) -> 258773.88 | D101: =ROUND(VLOOKUP(F101,[1]主表!$A:$B,2,FALSE)*[1]主表!$D$1*[1]升级!$Z$4,2) -> 2578.25 | E101: =ROUND(VLOOKUP(F101,[1]主表!$A:$B,2,FALSE)*[1]主表!$D$1*[1]升级!$W$4,2) -> 2578.25 | F101: 194 | G101: 195 | H101: =_xlfn.TEXTJOIN(";",1,J101,L101) -> 1001;1006 | I101: =_xlfn.TEXTJOIN(";",1,K101,M101) -> 139694;3490 | J101: 1001 | K101: =ROUND(40*VLOOKUP(G101,[2]ResourceLevelConfig!$A:$H,3,FALSE)/20,0) -> 139694 | L101: 1006 | M101: =ROUND(100*VLOOKUP(G101,[2]ResourceLevelConfig!$A:$H,8,FALSE)/20,0) -> 3490 | N101: -1 | O101: 4 | Q101: -1
A102: 98 | B102: 175931 | C102: =ROUND(VLOOKUP(F102,[1]主表!$A:$B,2,FALSE)*[1]主表!$D$1*[1]升级!$AC$4*(1+VLOOKUP(F102,[1]主表!$A:$F,6,FALSE)),2) -> 268288.95 | D102: =ROUND(VLOOKUP(F102,[1]主表!$A:$B,2,FALSE)*[1]主表!$D$1*[1]升级!$Z$4,2) -> 2648.35 | E102: =ROUND(VLOOKUP(F102,[1]主表!$A:$B,2,FALSE)*[1]主表!$D$1*[1]升级!$W$4,2) -> 2648.35 | F102: 196 | G102: 197 | H102: 1001;1006 | I102: 142522;3565 | J102: 1001 | K102: =ROUND(40*VLOOKUP(G102,[2]ResourceLevelConfig!$A:$H,3,FALSE)/20,0) -> 142522 | L102: 1006 | M102: =ROUND(100*VLOOKUP(G102,[2]ResourceLevelConfig!$A:$H,8,FALSE)/20,0) -> 3565 | N102: -1 | O102: 4 | Q102: -1
A103: 99 | B103: 190005 | C103: =ROUND(VLOOKUP(F103,[1]主表!$A:$B,2,FALSE)*[1]主表!$D$1*[1]升级!$AC$4*(1+VLOOKUP(F103,[1]主表!$A:$F,6,FALSE)),2) -> 278130.12 | D103: =ROUND(VLOOKUP(F103,[1]主表!$A:$B,2,FALSE)*[1]主表!$D$1*[1]升级!$Z$4,2) -> 2720.34 | E103: =ROUND(VLOOKUP(F103,[1]主表!$A:$B,2,FALSE)*[1]主表!$D$1*[1]升级!$W$4,2) -> 2720.34 | F103: 198 | G103: 199 | H103: 1001;1006 | I103: 145406;3635 | J103: 1001 | K103: =ROUND(40*VLOOKUP(G103,[2]ResourceLevelConfig!$A:$H,3,FALSE)/20,0) -> 145406 | L103: 1006 | M103: =ROUND(100*VLOOKUP(G103,[2]ResourceLevelConfig!$A:$H,8,FALSE)/20,0) -> 3635 | N103: -1 | O103: 4 | Q103: -1
A104: 100 | B104: 205205 | C104: =ROUND(VLOOKUP(F104,[1]主表!$A:$B,2,FALSE)*[1]主表!$D$1*[1]升级!$AC$4*(1+VLOOKUP(F104,[1]主表!$A:$F,6,FALSE)),2) -> 288308.09 | D104: =ROUND(VLOOKUP(F104,[1]主表!$A:$B,2,FALSE)*[1]主表!$D$1*[1]升级!$Z$4,2) -> 2794.3 | E104: =ROUND(VLOOKUP(F104,[1]主表!$A:$B,2,FALSE)*[1]主表!$D$1*[1]升级!$W$4,2) -> 2794.3 | F104: 200 | G104: 201 | H104: 1001;1006 | I104: 148348;3710 | J104: 1001 | K104: =ROUND(40*VLOOKUP(G104,[2]ResourceLevelConfig!$A:$H,3,FALSE)/20,0) -> 148348 | L104: 1006 | M104: =ROUND(100*VLOOKUP(G104,[2]ResourceLevelConfig!$A:$H,8,FALSE)/20,0) -> 3710 | N104: -1 | O104: 4 | Q104: -1
A105: 101 | B105: 221621 | C105: =ROUND(VLOOKUP(F105,[1]主表!$A:$B,2,FALSE)*[1]主表!$D$1*[1]升级!$AC$4*(1+VLOOKUP(F105,[1]主表!$A:$F,6,FALSE)),2) -> 324338.13 | D105: =ROUND(VLOOKUP(F105,[1]主表!$A:$B,2,FALSE)*[1]主表!$D$1*[1]升级!$Z$4,2) -> 3115.23 | E105: =ROUND(VLOOKUP(F105,[1]主表!$A:$B,2,FALSE)*[1]主表!$D$1*[1]升级!$W$4,2) -> 3115.23 | F105: 202 | G105: 203 | H105: 1001;1006 | I105: 151352;3785 | J105: 1001 | K105: =ROUND(40*VLOOKUP(G105,[2]ResourceLevelConfig!$A:$H,3,FALSE)/20,0) -> 151352 | L105: 1006 | M105: =ROUND(100*VLOOKUP(G105,[2]ResourceLevelConfig!$A:$H,8,FALSE)/20,0) -> 3785 | N105: -1 | O105: 4 | Q105: -1
A106: 102 | B106: 239351 | C106: =ROUND(VLOOKUP(F106,[1]主表!$A:$B,2,FALSE)*[1]主表!$D$1*[1]升级!$AC$4*(1+VLOOKUP(F106,[1]主表!$A:$F,6,FALSE)),2) -> 336152.15 | D106: =ROUND(VLOOKUP(F106,[1]主表!$A:$B,2,FALSE)*[1]主表!$D$1*[1]升级!$Z$4,2) -> 3199.92 | E106: =ROUND(VLOOKUP(F106,[1]主表!$A:$B,2,FALSE)*[1]主表!$D$1*[1]升级!$W$4,2) -> 3199.92 | F106: 204 | G106: 205 | H106: 1001;1006 | I106: 154414;3860 | J106: 1001 | K106: =ROUND(40*VLOOKUP(G106,[2]ResourceLevelConfig!$A:$H,3,FALSE)/20,0) -> 154414 | L106: 1006 | M106: =ROUND(100*VLOOKUP(G106,[2]ResourceLevelConfig!$A:$H,8,FALSE)/20,0) -> 3860 | N106: -1 | O106: 4 | Q106: -1
A107: 103 | B107: 258499 | C107: =ROUND(VLOOKUP(F107,[1]主表!$A:$B,2,FALSE)*[1]主表!$D$1*[1]升级!$AC$4*(1+VLOOKUP(F107,[1]主表!$A:$F,6,FALSE)),2) -> 348368.82 | D107: =ROUND(VLOOKUP(F107,[1]主表!$A:$B,2,FALSE)*[1]主表!$D$1*[1]升级!$Z$4,2) -> 3286.91 | E107: =ROUND(VLOOKUP(F107,[1]主表!$A:$B,2,FALSE)*[1]主表!$D$1*[1]升级!$W$4,2) -> 3286.91 | F107: 206 | G107: 207 | H107: 1001;1006 | I107: 157540;3940 | J107: 1001 | K107: =ROUND(40*VLOOKUP(G107,[2]ResourceLevelConfig!$A:$H,3,FALSE)/20,0) -> 157540 | L107: 1006 | M107: =ROUND(100*VLOOKUP(G107,[2]ResourceLevelConfig!$A:$H,8,FALSE)/20,0) -> 3940 | N107: -1 | O107: 4 | Q107: -1
A108: 104 | B108: 279179 | C108: =ROUND(VLOOKUP(F108,[1]主表!$A:$B,2,FALSE)*[1]主表!$D$1*[1]升级!$AC$4*(1+VLOOKUP(F108,[1]主表!$A:$F,6,FALSE)),2) -> 361001.28 | D108: =ROUND(VLOOKUP(F108,[1]主表!$A:$B,2,FALSE)*[1]主表!$D$1*[1]升级!$Z$4,2) -> 3376.27 | E108: =ROUND(VLOOKUP(F108,[1]主表!$A:$B,2,FALSE)*[1]主表!$D$1*[1]升级!$W$4,2) -> 3376.27 | F108: 208 | G108: 209 | H108: 1001;1006 | I108: 160728;4020 | J108: 1001 | K108: =ROUND(40*VLOOKUP(G108,[2]ResourceLevelConfig!$A:$H,3,FALSE)/20,0) -> 160728 | L108: 1006 | M108: =ROUND(100*VLOOKUP(G108,[2]ResourceLevelConfig!$A:$H,8,FALSE)/20,0) -> 4020 | N108: -1 | O108: 4 | Q108: -1
A109: 105 | B109: 301513 | C109: =ROUND(VLOOKUP(F109,[1]主表!$A:$B,2,FALSE)*[1]主表!$D$1*[1]升级!$AC$4*(1+VLOOKUP(F109,[1]主表!$A:$F,6,FALSE)),2) -> 374063.12 | D109: =ROUND(VLOOKUP(F109,[1]主表!$A:$B,2,FALSE)*[1]主表!$D$1*[1]升级!$Z$4,2) -> 3468.06 | E109: =ROUND(VLOOKUP(F109,[1]主表!$A:$B,2,FALSE)*[1]主表!$D$1*[1]升级!$W$4,2) -> 3468.06 | F109: 210 | G109: 211 | H109: 1001;1006 | I109: 163982;4100 | J109: 1001 | K109: =ROUND(40*VLOOKUP(G109,[2]ResourceLevelConfig!$A:$H,3,FALSE)/20,0) -> 163982 | L109: 1006 | M109: =ROUND(100*VLOOKUP(G109,[2]ResourceLevelConfig!$A:$H,8,FALSE)/20,0) -> 4100 | N109: -1 | O109: 4 | Q109: -1
A110: 106 | B110: 325634 | C110: =ROUND(VLOOKUP(F110,[1]主表!$A:$B,2,FALSE)*[1]主表!$D$1*[1]升级!$AC$4*(1+VLOOKUP(F110,[1]主表!$A:$F,6,FALSE)),2) -> 497126.75 | D110: =ROUND(VLOOKUP(F110,[1]主表!$A:$B,2,FALSE)*[1]主表!$D$1*[1]升级!$Z$4,2) -> 4569.35 | E110: =ROUND(VLOOKUP(F110,[1]主表!$A:$B,2,FALSE)*[1]主表!$D$1*[1]升级!$W$4,2) -> 4569.35 | F110: 212 | G110: 213 | H110: 1001;1006 | I110: 167302;4185 | J110: 1001 | K110: =ROUND(40*VLOOKUP(G110,[2]ResourceLevelConfig!$A:$H,3,FALSE)/20,0) -> 167302 | L110: 1006 | M110: =ROUND(100*VLOOKUP(G110,[2]ResourceLevelConfig!$A:$H,8,FALSE)/20,0) -> 4185 | N110: -1 | O110: 4 | Q110: -1
A111: 107 | B111: 351685 | C111: =ROUND(VLOOKUP(F111,[1]主表!$A:$B,2,FALSE)*[1]主表!$D$1*[1]升级!$AC$4*(1+VLOOKUP(F111,[1]主表!$A:$F,6,FALSE)),2) -> 515036.93 | D111: =ROUND(VLOOKUP(F111,[1]主表!$A:$B,2,FALSE)*[1]主表!$D$1*[1]升级!$Z$4,2) -> 4693.57 | E111: =ROUND(VLOOKUP(F111,[1]主表!$A:$B,2,FALSE)*[1]主表!$D$1*[1]升级!$W$4,2) -> 4693.57 | F111: 214 | G111: 215 | H111: 1001;1006 | I111: 170688;4265 | J111: 1001 | K111: =ROUND(40*VLOOKUP(G111,[2]ResourceLevelConfig!$A:$H,3,FALSE)/20,0) -> 170688 | L111: 1006 | M111: =ROUND(100*VLOOKUP(G111,[2]ResourceLevelConfig!$A:$H,8,FALSE)/20,0) -> 4265 | N111: -1 | O111: 4 | Q111: -1
A112: 108 | B112: 379820 | C112: =ROUND(VLOOKUP(F112,[1]主表!$A:$B,2,FALSE)*[1]主表!$D$1*[1]升级!$AC$4*(1+VLOOKUP(F112,[1]主表!$A:$F,6,FALSE)),2) -> 533553.51 | D112: =ROUND(VLOOKUP(F112,[1]主表!$A:$B,2,FALSE)*[1]主表!$D$1*[1]升级!$Z$4,2) -> 4821.17 | E112: =ROUND(VLOOKUP(F112,[1]主表!$A:$B,2,FALSE)*[1]主表!$D$1*[1]升级!$W$4,2) -> 4821.17 | F112: 216 | G112: 217 | H112: 1001;1006 | I112: 174142;4355 | J112: 1001 | K112: =ROUND(40*VLOOKUP(G112,[2]ResourceLevelConfig!$A:$H,3,FALSE)/20,0) -> 174142 | L112: 1006 | M112: =ROUND(100*VLOOKUP(G112,[2]ResourceLevelConfig!$A:$H,8,FALSE)/20,0) -> 4355 | N112: -1 | O112: 4 | Q112: -1
A113: 109 | B113: 410206 | C113: =ROUND(VLOOKUP(F113,[1]主表!$A:$B,2,FALSE)*[1]主表!$D$1*[1]升级!$AC$4*(1+VLOOKUP(F113,[1]主表!$A:$F,6,FALSE)),2) -> 552696.22 | D113: =ROUND(VLOOKUP(F113,[1]主表!$A:$B,2,FALSE)*[1]主表!$D$1*[1]升级!$Z$4,2) -> 4952.24 | E113: =ROUND(VLOOKUP(F113,[1]主表!$A:$B,2,FALSE)*[1]主表!$D$1*[1]升级!$W$4,2) -> 4952.24 | F113: 218 | G113: 219 | H113: 1001;1006 | I113: 177668;4440 | J113: 1001 | K113: =ROUND(40*VLOOKUP(G113,[2]ResourceLevelConfig!$A:$H,3,FALSE)/20,0) -> 177668 | L113: 1006 | M113: =ROUND(100*VLOOKUP(G113,[2]ResourceLevelConfig!$A:$H,8,FALSE)/20,0) -> 4440 | N113: -1 | O113: 4 | Q113: -1
A114: 110 | B114: 443022 | C114: =ROUND(VLOOKUP(F114,[1]主表!$A:$B,2,FALSE)*[1]主表!$D$1*[1]升级!$AC$4*(1+VLOOKUP(F114,[1]主表!$A:$F,6,FALSE)),2) -> 572485.42 | D114: =ROUND(VLOOKUP(F114,[1]主表!$A:$B,2,FALSE)*[1]主表!$D$1*[1]升级!$Z$4,2) -> 5086.87 | E114: =ROUND(VLOOKUP(F114,[1]主表!$A:$B,2,FALSE)*[1]主表!$D$1*[1]升级!$W$4,2) -> 5086.87 | F114: 220 | G114: 221 | H114: 1001;1006 | I114: 181264;4530 | J114: 1001 | K114: =ROUND(40*VLOOKUP(G114,[2]ResourceLevelConfig!$A:$H,3,FALSE)/20,0) -> 181264 | L114: 1006 | M114: =ROUND(100*VLOOKUP(G114,[2]ResourceLevelConfig!$A:$H,8,FALSE)/20,0) -> 4530 | N114: -1 | O114: 4 | Q114: -1
A115: 111 | B115: 478464 | C115: =ROUND(VLOOKUP(F115,[1]主表!$A:$B,2,FALSE)*[1]主表!$D$1*[1]升级!$AC$4*(1+VLOOKUP(F115,[1]主表!$A:$F,6,FALSE)),2) -> 643547.25 | D115: =ROUND(VLOOKUP(F115,[1]主表!$A:$B,2,FALSE)*[1]主表!$D$1*[1]升级!$Z$4,2) -> 5671.11 | E115: =ROUND(VLOOKUP(F115,[1]主表!$A:$B,2,FALSE)*[1]主表!$D$1*[1]升级!$W$4,2) -> 5671.11 | F115: 222 | G115: 223 | H115: 1001;1006 | I115: 184932;4625 | J115: 1001 | K115: =ROUND(40*VLOOKUP(G115,[2]ResourceLevelConfig!$A:$H,3,FALSE)/20,0) -> 184932 | L115: 1006 | M115: =ROUND(100*VLOOKUP(G115,[2]ResourceLevelConfig!$A:$H,8,FALSE)/20,0) -> 4625 | N115: -1 | O115: 4 | Q115: -1
A116: 112 | B116: 516741 | C116: =ROUND(VLOOKUP(F116,[1]主表!$A:$B,2,FALSE)*[1]主表!$D$1*[1]升级!$AC$4*(1+VLOOKUP(F116,[1]主表!$A:$F,6,FALSE)),2) -> 666497.81 | D116: =ROUND(VLOOKUP(F116,[1]主表!$A:$B,2,FALSE)*[1]主表!$D$1*[1]升级!$Z$4,2) -> 5825.28 | E116: =ROUND(VLOOKUP(F116,[1]主表!$A:$B,2,FALSE)*[1]主表!$D$1*[1]升级!$W$4,2) -> 5825.28 | F116: 224 | G116: 225 | H116: 1001;1006 | I116: 188676;4715 | J116: 1001 | K116: =ROUND(40*VLOOKUP(G116,[2]ResourceLevelConfig!$A:$H,3,FALSE)/20,0) -> 188676 | L116: 1006 | M116: =ROUND(100*VLOOKUP(G116,[2]ResourceLevelConfig!$A:$H,8,FALSE)/20,0) -> 4715 | N116: -1 | O116: 4 | Q116: -1
A117: 113 | B117: 558080 | C117: =ROUND(VLOOKUP(F117,[1]主表!$A:$B,2,FALSE)*[1]主表!$D$1*[1]升级!$AC$4*(1+VLOOKUP(F117,[1]主表!$A:$F,6,FALSE)),2) -> 690220.61 | D117: =ROUND(VLOOKUP(F117,[1]主表!$A:$B,2,FALSE)*[1]主表!$D$1*[1]升级!$Z$4,2) -> 5983.65 | E117: =ROUND(VLOOKUP(F117,[1]主表!$A:$B,2,FALSE)*[1]主表!$D$1*[1]升级!$W$4,2) -> 5983.65 | F117: 226 | G117: 227 | H117: 1001;1006 | I117: 192494;4810 | J117: 1001 | K117: =ROUND(40*VLOOKUP(G117,[2]ResourceLevelConfig!$A:$H,3,FALSE)/20,0) -> 192494 | L117: 1006 | M117: =ROUND(100*VLOOKUP(G117,[2]ResourceLevelConfig!$A:$H,8,FALSE)/20,0) -> 4810 | N117: -1 | O117: 4 | Q117: -1
A118: 114 | B118: 602726 | C118: =ROUND(VLOOKUP(F118,[1]主表!$A:$B,2,FALSE)*[1]主表!$D$1*[1]升级!$AC$4*(1+VLOOKUP(F118,[1]主表!$A:$F,6,FALSE)),2) -> 714740.66 | D118: =ROUND(VLOOKUP(F118,[1]主表!$A:$B,2,FALSE)*[1]主表!$D$1*[1]升级!$Z$4,2) -> 6146.32 | E118: =ROUND(VLOOKUP(F118,[1]主表!$A:$B,2,FALSE)*[1]主表!$D$1*[1]升级!$W$4,2) -> 6146.32 | F118: 228 | G118: 229 | H118: 1001;1006 | I118: 196390;4910 | J118: 1001 | K118: =ROUND(40*VLOOKUP(G118,[2]ResourceLevelConfig!$A:$H,3,FALSE)/20,0) -> 196390 | L118: 1006 | M118: =ROUND(100*VLOOKUP(G118,[2]ResourceLevelConfig!$A:$H,8,FALSE)/20,0) -> 4910 | N118: -1 | O118: 4 | Q118: -1
A119: 115 | B119: 650944 | C119: =ROUND(VLOOKUP(F119,[1]主表!$A:$B,2,FALSE)*[1]主表!$D$1*[1]升级!$AC$4*(1+VLOOKUP(F119,[1]主表!$A:$F,6,FALSE)),2) -> 740083.8 | D119: =ROUND(VLOOKUP(F119,[1]主表!$A:$B,2,FALSE)*[1]主表!$D$1*[1]升级!$Z$4,2) -> 6313.41 | E119: =ROUND(VLOOKUP(F119,[1]主表!$A:$B,2,FALSE)*[1]主表!$D$1*[1]升级!$W$4,2) -> 6313.41 | F119: 230 | G119: 231 | H119: 1001;1006 | I119: 200366;5010 | J119: 1001 | K119: =ROUND(40*VLOOKUP(G119,[2]ResourceLevelConfig!$A:$H,3,FALSE)/20,0) -> 200366 | L119: 1006 | M119: =ROUND(100*VLOOKUP(G119,[2]ResourceLevelConfig!$A:$H,8,FALSE)/20,0) -> 5010 | N119: -1 | O119: 4 | Q119: -1
A120: 116 | B120: 703020 | C120: =ROUND(VLOOKUP(F120,[1]主表!$A:$B,2,FALSE)*[1]主表!$D$1*[1]升级!$AC$4*(1+VLOOKUP(F120,[1]主表!$A:$F,6,FALSE)),2) -> 831675.16 | D120: =ROUND(VLOOKUP(F120,[1]主表!$A:$B,2,FALSE)*[1]主表!$D$1*[1]升级!$Z$4,2) -> 7038.52 | E120: =ROUND(VLOOKUP(F120,[1]主表!$A:$B,2,FALSE)*[1]主表!$D$1*[1]升级!$W$4,2) -> 7038.52 | F120: 232 | G120: 233 | H120: 1001;1006 | I120: 204420;5110 | J120: 1001 | K120: =ROUND(40*VLOOKUP(G120,[2]ResourceLevelConfig!$A:$H,3,FALSE)/20,0) -> 204420 | L120: 1006 | M120: =ROUND(100*VLOOKUP(G120,[2]ResourceLevelConfig!$A:$H,8,FALSE)/20,0) -> 5110 | N120: -1 | O120: 4 | Q120: -1
A121: 117 | B121: 759262 | C121: =ROUND(VLOOKUP(F121,[1]主表!$A:$B,2,FALSE)*[1]主表!$D$1*[1]升级!$AC$4*(1+VLOOKUP(F121,[1]主表!$A:$F,6,FALSE)),2) -> 861055.49 | D121: =ROUND(VLOOKUP(F121,[1]主表!$A:$B,2,FALSE)*[1]主表!$D$1*[1]升级!$Z$4,2) -> 7229.87 | E121: =ROUND(VLOOKUP(F121,[1]主表!$A:$B,2,FALSE)*[1]主表!$D$1*[1]升级!$W$4,2) -> 7229.87 | F121: 234 | G121: 235 | H121: 1001;1006 | I121: 208558;5215 | J121: 1001 | K121: =ROUND(40*VLOOKUP(G121,[2]ResourceLevelConfig!$A:$H,3,FALSE)/20,0) -> 208558 | L121: 1006 | M121: =ROUND(100*VLOOKUP(G121,[2]ResourceLevelConfig!$A:$H,8,FALSE)/20,0) -> 5215 | N121: -1 | O121: 4 | Q121: -1
A122: 118 | B122: 820003 | C122: =ROUND(VLOOKUP(F122,[1]主表!$A:$B,2,FALSE)*[1]主表!$D$1*[1]升级!$AC$4*(1+VLOOKUP(F122,[1]主表!$A:$F,6,FALSE)),2) -> 891418.62 | D122: =ROUND(VLOOKUP(F122,[1]主表!$A:$B,2,FALSE)*[1]主表!$D$1*[1]升级!$Z$4,2) -> 7426.42 | E122: =ROUND(VLOOKUP(F122,[1]主表!$A:$B,2,FALSE)*[1]主表!$D$1*[1]升级!$W$4,2) -> 7426.42 | F122: 236 | G122: 237 | H122: 1001;1006 | I122: 212780;5320 | J122: 1001 | K122: =ROUND(40*VLOOKUP(G122,[2]ResourceLevelConfig!$A:$H,3,FALSE)/20,0) -> 212780 | L122: 1006 | M122: =ROUND(100*VLOOKUP(G122,[2]ResourceLevelConfig!$A:$H,8,FALSE)/20,0) -> 5320 | N122: -1 | O122: 4 | Q122: -1
A123: 119 | B123: 885603 | C123: =ROUND(VLOOKUP(F123,[1]主表!$A:$B,2,FALSE)*[1]主表!$D$1*[1]升级!$AC$4*(1+VLOOKUP(F123,[1]主表!$A:$F,6,FALSE)),2) -> 922796.25 | D123: =ROUND(VLOOKUP(F123,[1]主表!$A:$B,2,FALSE)*[1]主表!$D$1*[1]升级!$Z$4,2) -> 7628.31 | E123: =ROUND(VLOOKUP(F123,[1]主表!$A:$B,2,FALSE)*[1]主表!$D$1*[1]升级!$W$4,2) -> 7628.31 | F123: 238 | G123: 239 | H123: 1001;1006 | I123: 217086;5425 | J123: 1001 | K123: =ROUND(40*VLOOKUP(G123,[2]ResourceLevelConfig!$A:$H,3,FALSE)/20,0) -> 217086 | L123: 1006 | M123: =ROUND(100*VLOOKUP(G123,[2]ResourceLevelConfig!$A:$H,8,FALSE)/20,0) -> 5425 | N123: -1 | O123: 4 | Q123: -1
A124: 120 | B124: 956451 | C124: =ROUND(VLOOKUP(F124,[1]主表!$A:$B,2,FALSE)*[1]主表!$D$1*[1]升级!$AC$4*(1+VLOOKUP(F124,[1]主表!$A:$F,6,FALSE)),2) -> 955221.13 | D124: =ROUND(VLOOKUP(F124,[1]主表!$A:$B,2,FALSE)*[1]主表!$D$1*[1]升级!$Z$4,2) -> 7835.7 | E124: =ROUND(VLOOKUP(F124,[1]主表!$A:$B,2,FALSE)*[1]主表!$D$1*[1]升级!$W$4,2) -> 7835.7 | F124: 240 | G124: 241 | H124: 1001;1006 | I124: 221480;5535 | J124: 1001 | K124: =ROUND(40*VLOOKUP(G124,[2]ResourceLevelConfig!$A:$H,3,FALSE)/20,0) -> 221480 | L124: 1006 | M124: =ROUND(100*VLOOKUP(G124,[2]ResourceLevelConfig!$A:$H,8,FALSE)/20,0) -> 5535 | N124: =_xlfn.TEXTJOIN(";",1,Q124:U124) -> -1;0;180;120;60 | O124: 5 | Q124: -1 | R124: 0 | S124: =[1]抽卡!$V$10 -> 180 | T124: =[1]抽卡!$V$11 -> 120 | U124: =[1]抽卡!$V$12 -> 60
A125: 121 | B125: 1032967 | C125: =ROUND(VLOOKUP(F125,[1]主表!$A:$B,2,FALSE)*[1]主表!$D$1*[1]升级!$AC$4*(1+VLOOKUP(F125,[1]主表!$A:$F,6,FALSE)),2) -> 1268221.77 | D125: =ROUND(VLOOKUP(F125,[1]主表!$A:$B,2,FALSE)*[1]主表!$D$1*[1]升级!$Z$4,2) -> 10323.94 | E125: =ROUND(VLOOKUP(F125,[1]主表!$A:$B,2,FALSE)*[1]主表!$D$1*[1]升级!$W$4,2) -> 10323.94 | F125: 242 | G125: 243 | H125: 1001;1006 | I125: 225964;5650 | J125: 1001 | K125: =ROUND(40*VLOOKUP(G125,[2]ResourceLevelConfig!$A:$H,3,FALSE)/20,0) -> 225964 | L125: 1006 | M125: =ROUND(100*VLOOKUP(G125,[2]ResourceLevelConfig!$A:$H,8,FALSE)/20,0) -> 5650 | N125: -1 | O125: 5 | Q125: -1
A126: 122 | B126: 1115604 | C126: =ROUND(VLOOKUP(F126,[1]主表!$A:$B,2,FALSE)*[1]主表!$D$1*[1]升级!$AC$4*(1+VLOOKUP(F126,[1]主表!$A:$F,6,FALSE)),2) -> 1312630.33 | D126: =ROUND(VLOOKUP(F126,[1]主表!$A:$B,2,FALSE)*[1]主表!$D$1*[1]升级!$Z$4,2) -> 10604.61 | E126: =ROUND(VLOOKUP(F126,[1]主表!$A:$B,2,FALSE)*[1]主表!$D$1*[1]升级!$W$4,2) -> 10604.61 | F126: 244 | G126: 245 | H126: 1001;1006 | I126: 230536;5765 | J126: 1001 | K126: =ROUND(40*VLOOKUP(G126,[2]ResourceLevelConfig!$A:$H,3,FALSE)/20,0) -> 230536 | L126: 1006 | M126: =ROUND(100*VLOOKUP(G126,[2]ResourceLevelConfig!$A:$H,8,FALSE)/20,0) -> 5765 | N126: -1 | O126: 5 | Q126: -1
A127: 123 | B127: 1204852 | C127: =ROUND(VLOOKUP(F127,[1]主表!$A:$B,2,FALSE)*[1]主表!$D$1*[1]升级!$AC$4*(1+VLOOKUP(F127,[1]主表!$A:$F,6,FALSE)),2) -> 1358516.15 | D127: =ROUND(VLOOKUP(F127,[1]主表!$A:$B,2,FALSE)*[1]主表!$D$1*[1]升级!$Z$4,2) -> 10892.9 | E127: =ROUND(VLOOKUP(F127,[1]主表!$A:$B,2,FALSE)*[1]主表!$D$1*[1]升级!$W$4,2) -> 10892.9 | F127: 246 | G127: 247 | H127: 1001;1006 | I127: 235202;5880 | J127: 1001 | K127: =ROUND(40*VLOOKUP(G127,[2]ResourceLevelConfig!$A:$H,3,FALSE)/20,0) -> 235202 | L127: 1006 | M127: =ROUND(100*VLOOKUP(G127,[2]ResourceLevelConfig!$A:$H,8,FALSE)/20,0) -> 5880 | N127: -1 | O127: 5 | Q127: -1
A128: 124 | B128: 1301240 | C128: =ROUND(VLOOKUP(F128,[1]主表!$A:$B,2,FALSE)*[1]主表!$D$1*[1]升级!$AC$4*(1+VLOOKUP(F128,[1]主表!$A:$F,6,FALSE)),2) -> 1405926.74 | D128: =ROUND(VLOOKUP(F128,[1]主表!$A:$B,2,FALSE)*[1]主表!$D$1*[1]升级!$Z$4,2) -> 11189.04 | E128: =ROUND(VLOOKUP(F128,[1]主表!$A:$B,2,FALSE)*[1]主表!$D$1*[1]升级!$W$4,2) -> 11189.04 | F128: 248 | G128: 249 | H128: 1001;1006 | I128: 239964;6000 | J128: 1001 | K128: =ROUND(40*VLOOKUP(G128,[2]ResourceLevelConfig!$A:$H,3,FALSE)/20,0) -> 239964 | L128: 1006 | M128: =ROUND(100*VLOOKUP(G128,[2]ResourceLevelConfig!$A:$H,8,FALSE)/20,0) -> 6000 | N128: -1 | O128: 5 | Q128: -1
A129: 125 | B129: 1405339 | C129: =ROUND(VLOOKUP(F129,[1]主表!$A:$B,2,FALSE)*[1]主表!$D$1*[1]升级!$AC$4*(1+VLOOKUP(F129,[1]主表!$A:$F,6,FALSE)),2) -> 1454911.08 | D129: =ROUND(VLOOKUP(F129,[1]主表!$A:$B,2,FALSE)*[1]主表!$D$1*[1]升级!$Z$4,2) -> 11493.22 | E129: =ROUND(VLOOKUP(F129,[1]主表!$A:$B,2,FALSE)*[1]主表!$D$1*[1]升级!$W$4,2) -> 11493.22 | F129: 250 | G129: 251 | H129: 1001;1006 | I129: 244820;6120 | J129: 1001 | K129: =ROUND(40*VLOOKUP(G129,[2]ResourceLevelConfig!$A:$H,3,FALSE)/20,0) -> 244820 | L129: 1006 | M129: =ROUND(100*VLOOKUP(G129,[2]ResourceLevelConfig!$A:$H,8,FALSE)/20,0) -> 6120 | N129: -1 | O129: 5 | Q129: -1
A130: 126 | B130: 1517766 | C130: =ROUND(VLOOKUP(F130,[1]主表!$A:$B,2,FALSE)*[1]主表!$D$1*[1]升级!$AC$4*(1+VLOOKUP(F130,[1]主表!$A:$F,6,FALSE)),2) -> 1634009.57 | D130: =ROUND(VLOOKUP(F130,[1]主表!$A:$B,2,FALSE)*[1]主表!$D$1*[1]升级!$Z$4,2) -> 12813.24 | E130: =ROUND(VLOOKUP(F130,[1]主表!$A:$B,2,FALSE)*[1]主表!$D$1*[1]升级!$W$4,2) -> 12813.24 | F130: 252 | G130: 253 | H130: 1001;1006 | I130: 249776;6245 | J130: 1001 | K130: =ROUND(40*VLOOKUP(G130,[2]ResourceLevelConfig!$A:$H,3,FALSE)/20,0) -> 249776 | L130: 1006 | M130: =ROUND(100*VLOOKUP(G130,[2]ResourceLevelConfig!$A:$H,8,FALSE)/20,0) -> 6245 | N130: -1 | O130: 5 | Q130: -1
A131: 127 | B131: 1639187 | C131: =ROUND(VLOOKUP(F131,[1]主表!$A:$B,2,FALSE)*[1]主表!$D$1*[1]升级!$AC$4*(1+VLOOKUP(F131,[1]主表!$A:$F,6,FALSE)),2) -> 1690756.9 | D131: =ROUND(VLOOKUP(F131,[1]主表!$A:$B,2,FALSE)*[1]主表!$D$1*[1]升级!$Z$4,2) -> 13161.58 | E131: =ROUND(VLOOKUP(F131,[1]主表!$A:$B,2,FALSE)*[1]主表!$D$1*[1]升级!$W$4,2) -> 13161.58 | F131: 254 | G131: 255 | H131: 1001;1006 | I131: 254832;6370 | J131: 1001 | K131: =ROUND(40*VLOOKUP(G131,[2]ResourceLevelConfig!$A:$H,3,FALSE)/20,0) -> 254832 | L131: 1006 | M131: =ROUND(100*VLOOKUP(G131,[2]ResourceLevelConfig!$A:$H,8,FALSE)/20,0) -> 6370 | N131: -1 | O131: 5 | Q131: -1
A132: 128 | B132: 1770322 | C132: =ROUND(VLOOKUP(F132,[1]主表!$A:$B,2,FALSE)*[1]主表!$D$1*[1]升级!$AC$4*(1+VLOOKUP(F132,[1]主表!$A:$F,6,FALSE)),2) -> 1749382.05 | D132: =ROUND(VLOOKUP(F132,[1]主表!$A:$B,2,FALSE)*[1]主表!$D$1*[1]升级!$Z$4,2) -> 13519.39 | E132: =ROUND(VLOOKUP(F132,[1]主表!$A:$B,2,FALSE)*[1]主表!$D$1*[1]升级!$W$4,2) -> 13519.39 | F132: 256 | G132: 257 | H132: 1001;1006 | I132: 259990;6500 | J132: 1001 | K132: =ROUND(40*VLOOKUP(G132,[2]ResourceLevelConfig!$A:$H,3,FALSE)/20,0) -> 259990 | L132: 1006 | M132: =ROUND(100*VLOOKUP(G132,[2]ResourceLevelConfig!$A:$H,8,FALSE)/20,0) -> 6500 | N132: -1 | O132: 5 | Q132: -1
A133: 129 | B133: 1911948 | C133: =ROUND(VLOOKUP(F133,[1]主表!$A:$B,2,FALSE)*[1]主表!$D$1*[1]升级!$AC$4*(1+VLOOKUP(F133,[1]主表!$A:$F,6,FALSE)),2) -> 1809945.15 | D133: =ROUND(VLOOKUP(F133,[1]主表!$A:$B,2,FALSE)*[1]主表!$D$1*[1]升级!$Z$4,2) -> 13886.93 | E133: =ROUND(VLOOKUP(F133,[1]主表!$A:$B,2,FALSE)*[1]主表!$D$1*[1]升级!$W$4,2) -> 13886.93 | F133: 258 | G133: 259 | H133: 1001;1006 | I133: 265252;6630 | J133: 1001 | K133: =ROUND(40*VLOOKUP(G133,[2]ResourceLevelConfig!$A:$H,3,FALSE)/20,0) -> 265252 | L133: 1006 | M133: =ROUND(100*VLOOKUP(G133,[2]ResourceLevelConfig!$A:$H,8,FALSE)/20,0) -> 6630 | N133: =_xlfn.TEXTJOIN(";",1,Q133:U133) -> -1 | O133: 5 | Q133: -1
A134: 130 | B134: 2064904 | C134: =ROUND(VLOOKUP(F134,[1]主表!$A:$B,2,FALSE)*[1]主表!$D$1*[1]升级!$AC$4*(1+VLOOKUP(F134,[1]主表!$A:$F,6,FALSE)),2) -> 1872508.26 | D134: =ROUND(VLOOKUP(F134,[1]主表!$A:$B,2,FALSE)*[1]主表!$D$1*[1]升级!$Z$4,2) -> 14264.46 | E134: =ROUND(VLOOKUP(F134,[1]主表!$A:$B,2,FALSE)*[1]主表!$D$1*[1]升级!$W$4,2) -> 14264.46 | F134: 260 | G134: 261 | H134: 1001;1006 | I134: 270620;6765 | J134: 1001 | K134: =ROUND(40*VLOOKUP(G134,[2]ResourceLevelConfig!$A:$H,3,FALSE)/20,0) -> 270620 | L134: 1006 | M134: =ROUND(100*VLOOKUP(G134,[2]ResourceLevelConfig!$A:$H,8,FALSE)/20,0) -> 6765 | N134: -1 | O134: 5 | Q134: -1
A135: 131 | B135: 2230096 | C135: =ROUND(VLOOKUP(F135,[1]主表!$A:$B,2,FALSE)*[1]主表!$D$1*[1]升级!$AC$4*(1+VLOOKUP(F135,[1]主表!$A:$F,6,FALSE)),2) -> 2102461.82 | D135: =ROUND(VLOOKUP(F135,[1]主表!$A:$B,2,FALSE)*[1]主表!$D$1*[1]升级!$Z$4,2) -> 15902.76 | E135: =ROUND(VLOOKUP(F135,[1]主表!$A:$B,2,FALSE)*[1]主表!$D$1*[1]升级!$W$4,2) -> 15902.76 | F135: 262 | G135: 263 | H135: 1001;1006 | I135: 276098;6900 | J135: 1001 | K135: =ROUND(40*VLOOKUP(G135,[2]ResourceLevelConfig!$A:$H,3,FALSE)/20,0) -> 276098 | L135: 1006 | M135: =ROUND(100*VLOOKUP(G135,[2]ResourceLevelConfig!$A:$H,8,FALSE)/20,0) -> 6900 | N135: -1 | O135: 5 | Q135: -1
A136: 132 | B136: 2408504 | C136: =ROUND(VLOOKUP(F136,[1]主表!$A:$B,2,FALSE)*[1]主表!$D$1*[1]升级!$AC$4*(1+VLOOKUP(F136,[1]主表!$A:$F,6,FALSE)),2) -> 2174916.33 | D136: =ROUND(VLOOKUP(F136,[1]主表!$A:$B,2,FALSE)*[1]主表!$D$1*[1]升级!$Z$4,2) -> 16335.09 | E136: =ROUND(VLOOKUP(F136,[1]主表!$A:$B,2,FALSE)*[1]主表!$D$1*[1]升级!$W$4,2) -> 16335.09 | F136: 264 | G136: 265 | H136: 1001;1006 | I136: 281686;7040 | J136: 1001 | K136: =ROUND(40*VLOOKUP(G136,[2]ResourceLevelConfig!$A:$H,3,FALSE)/20,0) -> 281686 | L136: 1006 | M136: =ROUND(100*VLOOKUP(G136,[2]ResourceLevelConfig!$A:$H,8,FALSE)/20,0) -> 7040 | N136: -1 | O136: 5 | Q136: -1
A137: 133 | B137: 2601184 | C137: =ROUND(VLOOKUP(F137,[1]主表!$A:$B,2,FALSE)*[1]主表!$D$1*[1]升级!$AC$4*(1+VLOOKUP(F137,[1]主表!$A:$F,6,FALSE)),2) -> 2249756.45 | D137: =ROUND(VLOOKUP(F137,[1]主表!$A:$B,2,FALSE)*[1]主表!$D$1*[1]升级!$Z$4,2) -> 16779.18 | E137: =ROUND(VLOOKUP(F137,[1]主表!$A:$B,2,FALSE)*[1]主表!$D$1*[1]升级!$W$4,2) -> 16779.18 | F137: 266 | G137: 267 | H137: 1001;1006 | I137: 287388;7185 | J137: 1001 | K137: =ROUND(40*VLOOKUP(G137,[2]ResourceLevelConfig!$A:$H,3,FALSE)/20,0) -> 287388 | L137: 1006 | M137: =ROUND(100*VLOOKUP(G137,[2]ResourceLevelConfig!$A:$H,8,FALSE)/20,0) -> 7185 | N137: -1 | O137: 5 | Q137: -1
A138: 134 | B138: 2809279 | C138: =ROUND(VLOOKUP(F138,[1]主表!$A:$B,2,FALSE)*[1]主表!$D$1*[1]升级!$AC$4*(1+VLOOKUP(F138,[1]主表!$A:$F,6,FALSE)),2) -> 2327058.34 | D138: =ROUND(VLOOKUP(F138,[1]主表!$A:$B,2,FALSE)*[1]主表!$D$1*[1]升级!$Z$4,2) -> 17235.33 | E138: =ROUND(VLOOKUP(F138,[1]主表!$A:$B,2,FALSE)*[1]主表!$D$1*[1]升级!$W$4,2) -> 17235.33 | F138: 268 | G138: 269 | H138: 1001;1006 | I138: 293204;7330 | J138: 1001 | K138: =ROUND(40*VLOOKUP(G138,[2]ResourceLevelConfig!$A:$H,3,FALSE)/20,0) -> 293204 | L138: 1006 | M138: =ROUND(100*VLOOKUP(G138,[2]ResourceLevelConfig!$A:$H,8,FALSE)/20,0) -> 7330 | N138: -1 | O138: 5 | Q138: -1
A139: 135 | B139: 3034021 | C139: =ROUND(VLOOKUP(F139,[1]主表!$A:$B,2,FALSE)*[1]主表!$D$1*[1]升级!$AC$4*(1+VLOOKUP(F139,[1]主表!$A:$F,6,FALSE)),2) -> 2406900.54 | D139: =ROUND(VLOOKUP(F139,[1]主表!$A:$B,2,FALSE)*[1]主表!$D$1*[1]升级!$Z$4,2) -> 17703.89 | E139: =ROUND(VLOOKUP(F139,[1]主表!$A:$B,2,FALSE)*[1]主表!$D$1*[1]升级!$W$4,2) -> 17703.89 | F139: 270 | G139: 271 | H139: 1001;1006 | I139: 299138;7480 | J139: 1001 | K139: =ROUND(40*VLOOKUP(G139,[2]ResourceLevelConfig!$A:$H,3,FALSE)/20,0) -> 299138 | L139: 1006 | M139: =ROUND(100*VLOOKUP(G139,[2]ResourceLevelConfig!$A:$H,8,FALSE)/20,0) -> 7480 | N139: -1 | O139: 5 | Q139: -1
A140: 136 | B140: 3276743 | C140: =ROUND(VLOOKUP(F140,[1]主表!$A:$B,2,FALSE)*[1]主表!$D$1*[1]升级!$AC$4*(1+VLOOKUP(F140,[1]主表!$A:$F,6,FALSE)),2) -> 3193061.1 | D140: =ROUND(VLOOKUP(F140,[1]主表!$A:$B,2,FALSE)*[1]主表!$D$1*[1]升级!$Z$4,2) -> 23325.81 | E140: =ROUND(VLOOKUP(F140,[1]主表!$A:$B,2,FALSE)*[1]主表!$D$1*[1]升级!$W$4,2) -> 23325.81 | F140: 272 | G140: 273 | H140: 1001;1006 | I140: 305194;7630 | J140: 1001 | K140: =ROUND(40*VLOOKUP(G140,[2]ResourceLevelConfig!$A:$H,3,FALSE)/20,0) -> 305194 | L140: 1006 | M140: =ROUND(100*VLOOKUP(G140,[2]ResourceLevelConfig!$A:$H,8,FALSE)/20,0) -> 7630 | N140: -1 | O140: 5 | Q140: -1
A141: 137 | B141: 3538882 | C141: =ROUND(VLOOKUP(F141,[1]主表!$A:$B,2,FALSE)*[1]主表!$D$1*[1]升级!$AC$4*(1+VLOOKUP(F141,[1]主表!$A:$F,6,FALSE)),2) -> 3302304.92 | D141: =ROUND(VLOOKUP(F141,[1]主表!$A:$B,2,FALSE)*[1]主表!$D$1*[1]升级!$Z$4,2) -> 23959.94 | E141: =ROUND(VLOOKUP(F141,[1]主表!$A:$B,2,FALSE)*[1]主表!$D$1*[1]升级!$W$4,2) -> 23959.94 | F141: 274 | G141: 275 | H141: 1001;1006 | I141: 311370;7785 | J141: 1001 | K141: =ROUND(40*VLOOKUP(G141,[2]ResourceLevelConfig!$A:$H,3,FALSE)/20,0) -> 311370 | L141: 1006 | M141: =ROUND(100*VLOOKUP(G141,[2]ResourceLevelConfig!$A:$H,8,FALSE)/20,0) -> 7785 | N141: -1 | O141: 5 | Q141: -1
A142: 138 | B142: 3821993 | C142: =ROUND(VLOOKUP(F142,[1]主表!$A:$B,2,FALSE)*[1]主表!$D$1*[1]升级!$AC$4*(1+VLOOKUP(F142,[1]主表!$A:$F,6,FALSE)),2) -> 3415128.62 | D142: =ROUND(VLOOKUP(F142,[1]主表!$A:$B,2,FALSE)*[1]主表!$D$1*[1]升级!$Z$4,2) -> 24611.31 | E142: =ROUND(VLOOKUP(F142,[1]主表!$A:$B,2,FALSE)*[1]主表!$D$1*[1]升级!$W$4,2) -> 24611.31 | F142: 276 | G142: 277 | H142: 1001;1006 | I142: 317674;7940 | J142: 1001 | K142: =ROUND(40*VLOOKUP(G142,[2]ResourceLevelConfig!$A:$H,3,FALSE)/20,0) -> 317674 | L142: 1006 | M142: =ROUND(100*VLOOKUP(G142,[2]ResourceLevelConfig!$A:$H,8,FALSE)/20,0) -> 7940 | N142: -1 | O142: 5 | Q142: -1
A143: 139 | B143: 4127752 | C143: =ROUND(VLOOKUP(F143,[1]主表!$A:$B,2,FALSE)*[1]主表!$D$1*[1]升级!$AC$4*(1+VLOOKUP(F143,[1]主表!$A:$F,6,FALSE)),2) -> 3531646.11 | D143: =ROUND(VLOOKUP(F143,[1]主表!$A:$B,2,FALSE)*[1]主表!$D$1*[1]升级!$Z$4,2) -> 25280.4 | E143: =ROUND(VLOOKUP(F143,[1]主表!$A:$B,2,FALSE)*[1]主表!$D$1*[1]升级!$W$4,2) -> 25280.4 | F143: 278 | G143: 279 | H143: 1001;1006 | I143: 324104;8105 | J143: 1001 | K143: =ROUND(40*VLOOKUP(G143,[2]ResourceLevelConfig!$A:$H,3,FALSE)/20,0) -> 324104 | L143: 1006 | M143: =ROUND(100*VLOOKUP(G143,[2]ResourceLevelConfig!$A:$H,8,FALSE)/20,0) -> 8105 | N143: -1 | O143: 5 | Q143: -1
A144: 140 | B144: 4457972 | C144: =ROUND(VLOOKUP(F144,[1]主表!$A:$B,2,FALSE)*[1]主表!$D$1*[1]升级!$AC$4*(1+VLOOKUP(F144,[1]主表!$A:$F,6,FALSE)),2) -> 3651974.84 | D144: =ROUND(VLOOKUP(F144,[1]主表!$A:$B,2,FALSE)*[1]主表!$D$1*[1]升级!$Z$4,2) -> 25967.67 | E144: =ROUND(VLOOKUP(F144,[1]主表!$A:$B,2,FALSE)*[1]主表!$D$1*[1]升级!$W$4,2) -> 25967.67 | F144: 280 | G144: 281 | H144: 1001;1006 | I144: 330664;8265 | J144: 1001 | K144: =ROUND(40*VLOOKUP(G144,[2]ResourceLevelConfig!$A:$H,3,FALSE)/20,0) -> 330664 | L144: 1006 | M144: =ROUND(100*VLOOKUP(G144,[2]ResourceLevelConfig!$A:$H,8,FALSE)/20,0) -> 8265 | N144: -1 | O144: 5 | Q144: -1
A145: 141 | B145: 4814610 | C145: =ROUND(VLOOKUP(F145,[1]主表!$A:$B,2,FALSE)*[1]主表!$D$1*[1]升级!$AC$4*(1+VLOOKUP(F145,[1]主表!$A:$F,6,FALSE)),2) -> 4098521.96 | D145: =ROUND(VLOOKUP(F145,[1]主表!$A:$B,2,FALSE)*[1]主表!$D$1*[1]升级!$Z$4,2) -> 28950.11 | E145: =ROUND(VLOOKUP(F145,[1]主表!$A:$B,2,FALSE)*[1]主表!$D$1*[1]升级!$W$4,2) -> 28950.11 | F145: 282 | G145: 283 | H145: 1001;1006 | I145: 337356;8435 | J145: 1001 | K145: =ROUND(40*VLOOKUP(G145,[2]ResourceLevelConfig!$A:$H,3,FALSE)/20,0) -> 337356 | L145: 1006 | M145: =ROUND(100*VLOOKUP(G145,[2]ResourceLevelConfig!$A:$H,8,FALSE)/20,0) -> 8435 | N145: -1 | O145: 5 | Q145: -1
A146: 142 | B146: 5199779 | C146: =ROUND(VLOOKUP(F146,[1]主表!$A:$B,2,FALSE)*[1]主表!$D$1*[1]升级!$AC$4*(1+VLOOKUP(F146,[1]主表!$A:$F,6,FALSE)),2) -> 4237791.69 | D146: =ROUND(VLOOKUP(F146,[1]主表!$A:$B,2,FALSE)*[1]主表!$D$1*[1]升级!$Z$4,2) -> 29737.14 | E146: =ROUND(VLOOKUP(F146,[1]主表!$A:$B,2,FALSE)*[1]主表!$D$1*[1]升级!$W$4,2) -> 29737.14 | F146: 284 | G146: 285 | H146: 1001;1006 | I146: 344184;8605 | J146: 1001 | K146: =ROUND(40*VLOOKUP(G146,[2]ResourceLevelConfig!$A:$H,3,FALSE)/20,0) -> 344184 | L146: 1006 | M146: =ROUND(100*VLOOKUP(G146,[2]ResourceLevelConfig!$A:$H,8,FALSE)/20,0) -> 8605 | N146: -1 | O146: 5 | Q146: -1
A147: 143 | B147: 5615761 | C147: =ROUND(VLOOKUP(F147,[1]主表!$A:$B,2,FALSE)*[1]主表!$D$1*[1]升级!$AC$4*(1+VLOOKUP(F147,[1]主表!$A:$F,6,FALSE)),2) -> 4381604.66 | D147: =ROUND(VLOOKUP(F147,[1]主表!$A:$B,2,FALSE)*[1]主表!$D$1*[1]升级!$Z$4,2) -> 30545.58 | E147: =ROUND(VLOOKUP(F147,[1]主表!$A:$B,2,FALSE)*[1]主表!$D$1*[1]升级!$W$4,2) -> 30545.58 | F147: 286 | G147: 287 | H147: 1001;1006 | I147: 351150;8780 | J147: 1001 | K147: =ROUND(40*VLOOKUP(G147,[2]ResourceLevelConfig!$A:$H,3,FALSE)/20,0) -> 351150 | L147: 1006 | M147: =ROUND(100*VLOOKUP(G147,[2]ResourceLevelConfig!$A:$H,8,FALSE)/20,0) -> 8780 | N147: -1 | O147: 5 | Q147: -1
A148: 144 | B148: 6065022 | C148: =ROUND(VLOOKUP(F148,[1]主表!$A:$B,2,FALSE)*[1]主表!$D$1*[1]升级!$AC$4*(1+VLOOKUP(F148,[1]主表!$A:$F,6,FALSE)),2) -> 4530104.97 | D148: =ROUND(VLOOKUP(F148,[1]主表!$A:$B,2,FALSE)*[1]主表!$D$1*[1]升级!$Z$4,2) -> 31375.99 | E148: =ROUND(VLOOKUP(F148,[1]主表!$A:$B,2,FALSE)*[1]主表!$D$1*[1]升级!$W$4,2) -> 31375.99 | F148: 288 | G148: 289 | H148: 1001;1006 | I148: 358258;8955 | J148: 1001 | K148: =ROUND(40*VLOOKUP(G148,[2]ResourceLevelConfig!$A:$H,3,FALSE)/20,0) -> 358258 | L148: 1006 | M148: =ROUND(100*VLOOKUP(G148,[2]ResourceLevelConfig!$A:$H,8,FALSE)/20,0) -> 8955 | N148: -1 | O148: 5 | Q148: -1
A149: 145 | B149: 6550224 | C149: =ROUND(VLOOKUP(F149,[1]主表!$A:$B,2,FALSE)*[1]主表!$D$1*[1]升级!$AC$4*(1+VLOOKUP(F149,[1]主表!$A:$F,6,FALSE)),2) -> 4683441.19 | D149: =ROUND(VLOOKUP(F149,[1]主表!$A:$B,2,FALSE)*[1]主表!$D$1*[1]升级!$Z$4,2) -> 32228.97 | E149: =ROUND(VLOOKUP(F149,[1]主表!$A:$B,2,FALSE)*[1]主表!$D$1*[1]升级!$W$4,2) -> 32228.97 | F149: 290 | G149: 291 | H149: 1001;1006 | I149: 365510;9140 | J149: 1001 | K149: =ROUND(40*VLOOKUP(G149,[2]ResourceLevelConfig!$A:$H,3,FALSE)/20,0) -> 365510 | L149: 1006 | M149: =ROUND(100*VLOOKUP(G149,[2]ResourceLevelConfig!$A:$H,8,FALSE)/20,0) -> 9140 | N149: -1 | O149: 5 | Q149: -1
A150: 146 | B150: 7074242 | C150: =ROUND(VLOOKUP(F150,[1]主表!$A:$B,2,FALSE)*[1]主表!$D$1*[1]升级!$AC$4*(1+VLOOKUP(F150,[1]主表!$A:$F,6,FALSE)),2) -> 5254991.15 | D150: =ROUND(VLOOKUP(F150,[1]主表!$A:$B,2,FALSE)*[1]主表!$D$1*[1]升级!$Z$4,2) -> 35930.54 | E150: =ROUND(VLOOKUP(F150,[1]主表!$A:$B,2,FALSE)*[1]主表!$D$1*[1]升级!$W$4,2) -> 35930.54 | F150: 292 | G150: 293 | H150: 1001;1006 | I150: 372908;9325 | J150: 1001 | K150: =ROUND(40*VLOOKUP(G150,[2]ResourceLevelConfig!$A:$H,3,FALSE)/20,0) -> 372908 | L150: 1006 | M150: =ROUND(100*VLOOKUP(G150,[2]ResourceLevelConfig!$A:$H,8,FALSE)/20,0) -> 9325 | N150: -1 | O150: 5 | Q150: -1
A151: 147 | B151: 7640181 | C151: =ROUND(VLOOKUP(F151,[1]主表!$A:$B,2,FALSE)*[1]主表!$D$1*[1]升级!$AC$4*(1+VLOOKUP(F151,[1]主表!$A:$F,6,FALSE)),2) -> 5432415.17 | D151: =ROUND(VLOOKUP(F151,[1]主表!$A:$B,2,FALSE)*[1]主表!$D$1*[1]升级!$Z$4,2) -> 36907.34 | E151: =ROUND(VLOOKUP(F151,[1]主表!$A:$B,2,FALSE)*[1]主表!$D$1*[1]升级!$W$4,2) -> 36907.34 | F151: 294 | G151: 295 | H151: 1001;1006 | I151: 380456;9510 | J151: 1001 | K151: =ROUND(40*VLOOKUP(G151,[2]ResourceLevelConfig!$A:$H,3,FALSE)/20,0) -> 380456 | L151: 1006 | M151: =ROUND(100*VLOOKUP(G151,[2]ResourceLevelConfig!$A:$H,8,FALSE)/20,0) -> 9510 | N151: -1 | O151: 5 | Q151: -1
A152: 148 | B152: 8251395 | C152: =ROUND(VLOOKUP(F152,[1]主表!$A:$B,2,FALSE)*[1]主表!$D$1*[1]升级!$AC$4*(1+VLOOKUP(F152,[1]主表!$A:$F,6,FALSE)),2) -> 5615602.23 | D152: =ROUND(VLOOKUP(F152,[1]主表!$A:$B,2,FALSE)*[1]主表!$D$1*[1]升级!$Z$4,2) -> 37910.7 | E152: =ROUND(VLOOKUP(F152,[1]主表!$A:$B,2,FALSE)*[1]主表!$D$1*[1]升级!$W$4,2) -> 37910.7 | F152: 296 | G152: 297 | H152: 1001;1006 | I152: 388156;9705 | J152: 1001 | K152: =ROUND(40*VLOOKUP(G152,[2]ResourceLevelConfig!$A:$H,3,FALSE)/20,0) -> 388156 | L152: 1006 | M152: =ROUND(100*VLOOKUP(G152,[2]ResourceLevelConfig!$A:$H,8,FALSE)/20,0) -> 9705 | N152: -1 | O152: 5 | Q152: -1
A153: 149 | B153: 8911507 | C153: =ROUND(VLOOKUP(F153,[1]主表!$A:$B,2,FALSE)*[1]主表!$D$1*[1]升级!$AC$4*(1+VLOOKUP(F153,[1]主表!$A:$F,6,FALSE)),2) -> 5804734.56 | D153: =ROUND(VLOOKUP(F153,[1]主表!$A:$B,2,FALSE)*[1]主表!$D$1*[1]升级!$Z$4,2) -> 38941.34 | E153: =ROUND(VLOOKUP(F153,[1]主表!$A:$B,2,FALSE)*[1]主表!$D$1*[1]升级!$W$4,2) -> 38941.34 | F153: 298 | G153: 299 | H153: 1001;1006 | I153: 396012;9900 | J153: 1001 | K153: =ROUND(40*VLOOKUP(G153,[2]ResourceLevelConfig!$A:$H,3,FALSE)/20,0) -> 396012 | L153: 1006 | M153: =ROUND(100*VLOOKUP(G153,[2]ResourceLevelConfig!$A:$H,8,FALSE)/20,0) -> 9900 | N153: =_xlfn.TEXTJOIN(";",1,Q153:U153) -> -1 | O153: 5 | Q153: -1
A154: 150 | B154: 9624428 | C154: =ROUND(VLOOKUP(F154,[1]主表!$A:$B,2,FALSE)*[1]主表!$D$1*[1]升级!$AC$4*(1+VLOOKUP(F154,[1]主表!$A:$F,6,FALSE)),2) -> 6000000.01 | D154: =ROUND(VLOOKUP(F154,[1]主表!$A:$B,2,FALSE)*[1]主表!$D$1*[1]升级!$Z$4,2) -> 40000 | E154: =ROUND(VLOOKUP(F154,[1]主表!$A:$B,2,FALSE)*[1]主表!$D$1*[1]升级!$W$4,2) -> 40000 | F154: 300 | G154: 999 | H154: 1001;1006 | I154: 999999;999999 | J154: 1001 | K154: 999999 | L154: 1006 | M154: 999999 | N154: =_xlfn.TEXTJOIN(";",1,Q154:U154) -> -1;0;300;200;90 | O154: 6 | Q154: -1 | R154: 0 | S154: =[1]抽卡!$W$10 -> 300 | T154: =[1]抽卡!$W$11 -> 200 | U154: =[1]抽卡!$W$12 -> 90
